Workbook

Sheet Guidance
A1: Education & Children’s Services
A4: TEACHER FLEXIBLE DAYS – GUIDELINES FOR SCHOOLS (2024/25)
A6: 1.0 Introduction
A8: The Teacher of Flexible Days will be contracted to work the total number of the schools Management Relief days where a Head Teacher is class committed. The contract will specify the number of fixed and flexible days that are required to be worked over the school session.
A10: All days are automatically paid therefore there will be no requirement for claims to be submitted for any management or in-service days.
A12: The table below demonstrates the current number of management days allocated which takes into account nursery provision. For the lower two levels of management days the TFD teacher will work one fixed day a week with the balance of hours being worked flexibly over the year. For those in the higher bracket, two days will be fixed with the balance of hours worked flexibly. The teacher will be employed for the total number of days averaged and paid in 12 equal instalments.
A15: Number of Management Days | C15: Number of Fixed Days to be worked each week* | E15: FTE | G15: Standard average hours TFD paid per week
A16: 82 | C16: 1 | E16: 0.42 | G16: 14.718
A17: 97.5 | C17: 1 | E17: 0.5 | G17: 17.5
A18: 108 | C18: 2 | E18: 0.55 | G18: 19.3846
A19: 118 | C19: 2 | E19: 0.6 | G19: 21.1795
A20: * | B20: Number of Fixed Days to be worked each week (balance will be worked flexibly)
A23: Please note that the scheduled usage of a TFD should be spread evenly across the school session to ensure that if the TFD leaves there will be sufficient days remaining to cover the replacements contract. Any shortfall of days at the end of the school session would need to be met by the school from another devolved budget and claimed for by S56.
A25: Head Teachers should meet with the Teacher of Flexible Days to agree when the flexible days will be worked to provide cover over the year.
A27: The Planner tab must be used to ensure that the contractual commitment of the teacher is being met and to avoid over/under payments. This will be the only record of the hours being worked; therefore the school will need to update this spreadsheet on a continual basis.
A29: The Teacher Flexible Days contract hours includes entitlement to non class contact time. Therefore the working pattern of the TFD should ensure that the teacher receives their entitlement to non class contact time in line with the Working Time Agreement.
A32: 2.0 Recruitment of Teacher of Flexible Days
A34: When advertising a Teacher of Flexible Days post, the total number of days over the school session to be worked and average number of hours per week should be identified in the advert text and explained to the prospective candidates at interview. If you do not have a record of this then please contact your E&CS Primary Accountant prior to submitting recruitment information to ensure the information for each vacancy is correct.
A36: When a new or replacement TFD is in post please contact Finance (Primary Accountant) so that the schools devolved management relief allocation can be removed to allow for payment to be made from a central budget. The school should set up a new Planner for the TFD. You will find a blank copy on Arcadia: HR Policies and Procedures/Contract Information/Teacher Flexible Days Planner .
A38: The HR Transactional Team will complete the new start eform after all pre-employment checkes have been successfully carried out and a start date agreed with the Head Teacher.
A40: As per SNCT handbook, a salary adjustment will be required to be done for any teacher who commences part way through the school session. The later in the school session a teacher starts the greater the adjustmet will be. This should also be expalined to the prospective candidates at interview.
A42: Please note that an eform for changes or leavers should be completed electronically by the school/Head Teacher. The eform can be completed by accessing the askHR portal via the Quick Links table on the Arcadia homepage. Log into the portal as a Line Manager > Notify or Request section > Employee Contract Change.
A44: 3.0 Recording Hours Worked
A46: Please refer to the ‘Using the Planner’ tab, for information on how to record the TFD’s hours.
A49: 3.1 Recording of Sick Leave
A51: If the TFD is off sick, the planner should be completed as follows:
A53: For sick days that are the TFD’s Fixed day(s) 7 hours sickness should be entered.
A54: For sick days that have already been allocated to work in the first week of sickness i.e. flexible days, the allocated hours should be entered e.g 7 hrs or 3.5 hrs as sickness
A55: For all full weeks of absence thereafter, the TFDs fixed day/s should be entered as 7 hrs along with the average daily hours for the balance of days in that week. Your planner will give you the figure that is to be used.
A57: For Information: This average figure is based on the number of flexible days that can be worked over the year divided by 195 school days less fixed contract days. Example: 82 days contract – 39 fixed days = 43 flexible days which can be worked over 156 days (43/(195-39) = 0.275 days x 7 = 1.93 hours)
A59: Please refer to the "Using the Planner" tab.
A62: 3.2 Recording of Maternity Leave
A64: If the TFD is on Maternity leave, the planner should be completed as follows:
A66: For days that are the TFD’s Fixed day(s) 7 hours maternity should be entered.
A67: For all other days during the period of absence, the average daily hours should be entered on the sheet. Your planner will give you the figure that is to be used.
A69: For Information: This average figure is based on the number of flexible days that can be worked over the year divided by 195 school days less fixed contract days. Example: 82 days contract – 39 fixed days = 43 flexible days which can be worked over 156 days (43/(195-39) = 0.275 days x 7 = 1.93 hours)
A71: Please refer to the "Using the Planner" tab.
A74: 3.3 Recording of Unpaid Special Leave
A76: If a TFD takes unpaid special leave during the school session, the hours should be included on Planner. These hours need to be recorded to ensure that the salary deduction is not made again at the end of the contracted period. The same method for recording sickness should be used. Please refer to the "Using the Planner" tab.
A78: 3.4 Recording of Paid Special Leave
A80: If a TFD takes paid special leave during the contract period, the hours should be included on the Planner. Again the same method for recording sickness should be used. Please refer to the "Using the Planner" tab.
A83: 4.0 Public Holidays
A85: If a public holiday falls on a fixed day which would normally be worked by the TFD, this should not be recorded as worked on the Planner. The day may need to be worked on another day to ensure that the total number of contracted days of the TFD has been worked over the school session.
A88: 5.0 In Service days
A90: The Teacher of Flexible Days contracts include the entitlement to In-Service days. Therefore the working pattern of the Teacher of Flexible Days should ensure that the teacher receives their entitlement to In-Service days (see table below). These days should not be claimed for by S56 timesheet. For further information regarding Working Time and In-Service please refer to the current Part Time Teachers Adjustments agreement, which can be accessed via the SNCT Handbook, Part 5 – Other LNCT agreements/Aberdeenshire.
A92: The entitlement to work in service days is calculated based on the standard 5 in service days:
A94: FTE | C94: Days employed (inclusive of In Service entitlement) | E94: In Service entitlement to be worked
A95: 0.6 | C95: 118 | E95: 3
A96: 0.55 | C96: 108 | E96: 3
A97: 0.5 | C97: 97.5 | E97: 2.5
A98: 0.42 | C98: 82 | E98: 2
A101: 6. Submission of Planner to HR Support/TFD
A103: A copy of the Planner will need to be sent in to askHR and/or the TFD under the following circumstances
A105: I. When the Teacher – Flexible Days leaves part way through the school session or changes role (ie becomes a Class Teacher).
A107: A calculation will require to be done by HR Transactional Team to identify if the TFD has worked more/less hours to their leaving date/change than they have been paid for and a salary adjustment made if they have been over/under paid.
A109: The school should submit an eform to remove the teacher from post, this should be sent along with a copy of the Planner completed up to the date that the teacher last worked/date of change. The eform can be completed by accessing the askHR portal, please see section 2 above for information.
A111: A copy must be provided to the employee for their record of days worked.
A112: II. At the end of each term
A114: It is the Head Teacher’s responsibility to ensure that the total number of contracted days are worked over the school session. These could be subject to Audit. A copy of the record should be provided to the current Teacher of Flexible Days for their record.
A116: III. If there is any change to the schools HT Management Days Entitlement
A118: If for any reason there is an increase to the number of hours that the school is entitled to, the school will need to submit an eform to increase the number of hours that the employee is being paid. A copy of the Planner, completed up to the date of change, should be attached to the eform.
A120: Within the additional information section of the eform, please detail, the date of change, the additional number of hours to be given to the school until the end of the current school session and the new school roll. The eform can be completed by accessing the askHR portal, please see section 2 above for information.
A122: For existing HTR moving to TFD contract, post information will be revised centrally. However any adjustment in post budget hours required to an existing TFD contract, an epost form should also be completed by the school and submitted in the normal manner to increase the budget hours for the post. The eform can be completed by accessing the askHR portal, please see section 2 above for information.
A124: A copy of the record to the date of change should be provided to the employee for their record.
A126: A new planner will need to be saved for the TFD with the new allocation and the date of increase input onto the planner tab.
A129: 7.0 Budget allocation and revision
A131: Schools will receive their budget allocation at the beginning of each school session.
A132: If the TFD leaves the school, please notify Finance (Primary Accountant) who will reduce the budget as necessary to allow Supply Teachers to be used until a replacement TFD can be put in to post. Any days worked by a Supply Teacher to cover a TFD vacancy should be coded to supply code 205.
A134: During the period which a TFD post is vacant within a school, Supply days will need to be used evenly across the period. This will ensure there is adequate budget remaining when issuing a contract to the replacement TFD. If there are insufficient days remaining when a replacement is to be put in to post, the school will be required to meet any difference from another devolved budget.
A136: Once a replacement TFD has been appointed please contact Finance (Primary Accountant) so that the schools devolved management relif allocation can be removed to allow for payment to be made from a central budget.
A139: 8.0 Using non contracted days for Management Relief time
A141: Carry forwards will not be allocated in to Management Relief budgets.
A143: There may be occasions where the school wish to use a carried forward budget to cover extra management relief time. In this instance the day would need to be charged against the devolved supply code 140 and if required budget would be vired in from another devolved budget to cover the hours.
A145: Unused management days cannot be vired to other budgets and there will continue to be no carry forward for days remaining at the end of the school session.

Sheet Using the planner
A2: Teacher - Flexible Days
A4: NB:
A5: Please copy and save a copy of this planner for your own records for each individual.
A6: A new copy will be required at the start of each new school session, for any new starts and when TFD changes hours.
A8: Planner:
A10: 1 | B10: Enter the employees name, payroll number and school/academy
A12: 2 | B12: Enter the contracted days for the whole school session:
B14: For example if the employee is to work 2.5 days per week (0.5 fte) then (2.5 X 39*) = 97.5.
A16: 3 | B16: The start date and end date can be amended, so if the employee is not employed for the whole school session this is used to give the total hours
B17: to be worked - using start & end dates.
A19: 4 | B19: The days to be worked that will be fixed are selected - Fixed Day 1 and Fixed Day 2. These days will then be highlighted in pink in the Hours Planner.
B20: Please note that generally if the hours are under 97.51 then there will be 1 fixed day and over 97.5 there will be two. One of the possible exceptions to this is
B21: when there is a job share in place and the number hours per week for the indiviual are low.
A23: 6 | B23: The in-service allocation and in-service days this session/average daily hours and relevant occasional days are displayed.
A25: 7 | B25: The hours to be worked each day can then be entered in the Hours Planner
A27: 8 | B27: If the employee is absent, please refer to section 3 of the planner.
B28: Please note that if average daily hours are used, when you enter the 4 decimal figure it will display as 2 digit figure in the hours box.
B30: After each box you enter hours in, there is an absence recording box with a dropdown, please see example below:
C32: Monday | D32: M | E32: Tuesday | F32: Tu
C33: 0 | E33: 0
C34: 7 | D34: Sck | E34: 7 | F34: Sck
C35: 0 | E35: 0
C36: 0 | E36: 0
B40: If the employee is absence please use the relevant absence recording box and using the dropdown select the appropriate reason code for absence as listed below.
C42: Key:
C43: Dropdown | D43: Full description
C44: Sck | D44: Sickness Absence
C45: Mat | D45: Maternity Leave
C46: Psl | D46: Paid Special Leave
C47: Usl | D47: Unpaid Special Leave
C48: Oth | D48: Other
B50: If Other is selected please input the details in the comments column.

Sheet Planner
C1: HOURS PLANNER 2024/2025
H4: EMPLOYEE DETAILS:
C5: For guidance on using the spreadsheet, please click on the"Using the planner" tab below. | H5: Name
H6: Payroll Number
H7: Establishment (Academy or School) | U7: Arnage School
H9: Contracted Days - Whole Session | U9: 97.5
H10: Total Hours to be Worked - Whole Session | S10: =U9*7 -> 682.5 | U10: =S10 -> 682.5
H11: Standard Average Hours Paid Per Week | U11: =(U9/39)*7 -> 17.5
H12: Start Date | Q12: =VALUE(U12) -> 2024-08-19 | R12: =Q12-1 -> 45522 | S12: =VALUE(Q13-Q12)+1 -> 364 | U12: 2024-08-19
H13: End Date | Q13: =VALUE(U13) -> 2025-08-17 | R13: =Q13+1 -> 45887 | S13: =IF(S12 >321,321,S12) -> 321 | U13: 2025-08-17
C14: In-service Days: | H14: Total Hours to be Worked - Using Start & End Dates | P14: Non contractual | Q14: =AD204+AM385 -> 126 | R14: =VALUE(Q14/5) -> 25.2 | S14: =S13-Q14 -> 195 | U14: =(U10/195)*S14 -> 682.5
C15: 2024-08-19 | H15: Fixed Day 1
C16: 2024-11-14 | H16: Fixed Day 2
C17: 2024-11-15
C18: 2025-02-11
C19: 2025-02-12 | H19: In-Service Hours Allocation | S19: =VALUE(U14) -> 682.5 | U19: =IF(Q12 > R20,"",S19*0.02564) -> 17.4993
H20: In-Service Days Allocation | R20: 2025-02-12 | S20: =U19/7 -> 2.4999 | U20: =IF(Q12 > R20,"",S20) -> 2.4999
H22: Average Daily Hours (excludes fixed days) : | P22: =AQ41 -> 0 | Q22: =(P22*(S14/5)) -> 0 | R22: =(S14)-Q22 -> 195 | S22: =U14-(Q22*7) -> 682.5 | U22: =S22/R22 -> 3.5
AO23: Sck
H24: Occasional Days For The Selected School Between Start and End Dates: | R24: =VLOOKUP(U7,OccHols!$B$3:$H$175,2,FALSE) -> 2025-02-07 | U24: =IF(R24 <$Q$12,"",IF(R24>$Q$13,"",R24)) -> 2025-02-07 | AO24: Mat
R25: =VLOOKUP(U7,OccHols!$B$3:$H$175,4,FALSE) -> 2025-06-02 | U25: =IF(R25 <$Q$12,"",IF(R25>$Q$13,"",R25)) -> 2025-06-02 | AO25: Psl
AO26: Oth
C27: Instructions:
D28: Please enter the number of hours actually worked in the Hours Planner below.
D29: If the employee is on sickness absence, on maternity leave, paid special leave or unpaid special leave:
D30: Please refer to section 3 of the guidance. Note fixed days are highlighted in pink. The drop down in the column following the hours is used to record absence reasons.
C33: HOURS PLANNER
C34: Week Start Date | D34: Monday | E34: M | F34: Tuesday | G34: Tu | H34: Wednesday | I34: W | J34: Thursday | K34: Th | L34: Friday | M34: F | N34: Saturday | O34: Sunday | P34: Sickness | Q34: Special Leave - Unpaid | R34: Special Leave - Paid | S34: Weekly Total | U34: Hours Remaining | V34: Comments
A35: =VALUE(C35) -> 45523 | C35: 2024-08-19 | D35: 0 | F35: 0 | H35: 0 | J35: 0 | L35: 0 | N35: 0 | O35: 0 | P35: =COUNTIF(D35:L35,"LSA") -> 0 | Q35: =COUNTIF(D35:L35,"LHE") -> 0 | R35: =COUNTIF(D35:L35,"LSL") -> 0 | S35: =SUM(D35:O35) -> 0 | U35: =U14-S35 -> 682.5 | Y35: non contractual days are listed:
A36: =VALUE(C36) -> 45530 | C36: =C35+7 -> 2024-08-26 | D36: 0 | F36: 0 | H36: 0 | J36: 0 | L36: 0 | N36: 0 | O36: 0 | P36: 0 | Q36: =COUNTIF(D36:L36,"LHE") -> 0 | R36: 0 | S36: 0 | U36: =U35-S36 -> 682.5
A37: 45537 | C37: 2024-09-02 | D37: 0 | F37: 0 | H37: 0 | J37: 0 | L37: 0 | N37: 0 | O37: 0 | P37: 0 | Q37: 0 | R37: 0 | S37: 0 | U37: 682.5 | AB37: no contractual days | AC37: formula | AD37: value | AH37: occ days
A38: 45544 | C38: 2024-09-09 | D38: 0 | F38: 0 | H38: 0 | J38: 0 | L38: 0 | N38: 0 | O38: 0 | P38: 0 | Q38: 0 | R38: 0 | S38: 0 | U38: 682.5 | Y38: start date value | Z38: =Q12 -> 45523 | AB38: 2024-08-24 | AC38: =IF($AB38<$Z$38,"0",IF($AB38<$Z$39,"1","0")) -> 1 | AD38: =VALUE(AC38) -> 1 | AE38: 2021-08-21 | AF38: Monday | AH38: School | AK38: Numeric Dates | AL38: =IF(AH38<>$U$7,"0",IF(AK38<$Z$38,"0",IF(AK38<$Z$39,"1","0"))) -> 0 | AM38: =VALUE(AL38) -> 0 | AP38: Fixed Days
A39: 45551 | C39: 2024-09-16 | D39: 0 | F39: 0 | H39: 0 | J39: 0 | L39: 0 | N39: 0 | O39: 0 | P39: 0 | Q39: 0 | R39: 0 | S39: 0 | U39: 682.5 | Y39: end dat + 1 value | Z39: =R13 -> 45887 | AB39: 2024-08-25 | AC39: 1 | AD39: =VALUE(AC39) -> 1 | AE39: 2021-08-22 | AF39: Tuesday | AH39: Aberchirder School | AI39: =IF(AH39 = $U$7,"y","n") -> n | AJ39: Aberchirder School | AK39: 2025-02-07 | AL39: 0 | AM39: =VALUE(AL39) -> 0 | AN39: 1 | AP39: =IF(U15 = "",0,1) -> 0 | AQ39: =VALUE(AP39) -> 0
A40: 45558 | C40: 2024-09-23 | D40: 0 | F40: 0 | H40: 0 | J40: 0 | L40: 0 | N40: 0 | O40: 0 | P40: 0 | Q40: 0 | R40: 0 | S40: 0 | U40: 682.5 | AB40: 2024-08-31 | AC40: 1 | AD40: 1 | AE40: 2021-08-28 | AF40: Wednesday | AH40: Aberchirder School | AI40: =IF(AH40 = $U$7,"y","n") -> n | AJ40: Aberchirder School | AK40: 2025-06-02 | AL40: 0 | AM40: =VALUE(AL40) -> 0 | AN40: 2 | AP40: =IF(U16 = "",0,1) -> 0 | AQ40: =VALUE(AP40) -> 0
A41: 45565 | C41: 2024-09-30 | D41: 0 | F41: 0 | H41: 0 | J41: 0 | L41: 0 | N41: 0 | O41: 0 | P41: 0 | Q41: 0 | R41: 0 | S41: 0 | U41: 682.5 | AB41: 2024-09-01 | AC41: 1 | AD41: 1 | AE41: 2021-08-29 | AF41: Thursday | AH41: Aboyne Academy | AI41: n | AJ41: Aboyne Academy | AK41: 2025-02-06 | AL41: 0 | AM41: 0 | AN41: 1 | AQ41: =SUM(AQ39:AQ40) -> 0
A42: 45572 | C42: 2024-10-07 | D42: 0 | F42: 0 | H42: 0 | J42: 0 | L42: 0 | N42: 0 | O42: 0 | P42: 0 | Q42: 0 | R42: 0 | S42: 0 | U42: 682.5 | AB42: 2024-09-07 | AC42: 1 | AD42: 1 | AE42: 2021-09-04 | AF42: Friday | AH42: Aboyne Academy | AI42: n | AJ42: Aboyne Academy | AK42: 2025-02-07 | AL42: 0 | AM42: 0 | AN42: 2
A43: 45579 | C43: 2024-10-14 | D43: 0 | F43: 0 | H43: 0 | J43: 0 | L43: 0 | N43: 0 | O43: 0 | P43: 0 | Q43: 0 | R43: 0 | S43: 0 | U43: 682.5 | AB43: 2024-09-08 | AC43: 1 | AD43: 1 | AE43: 2021-09-05 | AH43: Aboyne School | AI43: n | AJ43: Aboyne School | AK43: 2025-02-06 | AL43: 0 | AM43: 0 | AN43: 1
A44: 45586 | C44: 2024-10-21 | D44: 0 | F44: 0 | H44: 0 | J44: 0 | L44: 0 | N44: 0 | O44: 0 | P44: 0 | Q44: 0 | R44: 0 | S44: 0 | U44: 682.5 | AB44: 2024-09-14 | AC44: 1 | AD44: 1 | AE44: 2021-09-11 | AH44: Aboyne School | AI44: n | AJ44: Aboyne School | AK44: 2025-02-07 | AL44: 0 | AM44: 0 | AN44: 2
A45: 45593 | C45: 2024-10-28 | D45: 0 | F45: 0 | H45: 0 | J45: 0 | L45: 0 | N45: 0 | O45: 0 | P45: 0 | Q45: 0 | R45: 0 | S45: 0 | U45: 682.5 | AB45: 2024-09-15 | AC45: 1 | AD45: 1 | AE45: 2021-09-12 | AH45: Alehousewells School | AI45: n | AJ45: Alehousewells School | AK45: 2025-02-07 | AL45: 0 | AM45: 0 | AN45: 1
A46: 45600 | C46: 2024-11-04 | D46: 0 | F46: 0 | H46: 0 | J46: 0 | L46: 0 | N46: 0 | O46: 0 | P46: 0 | Q46: 0 | R46: 0 | S46: 0 | U46: 682.5 | AB46: 2024-09-21 | AC46: 1 | AD46: =VALUE(AC46) -> 1 | AE46: 2021-09-18 | AH46: Alehousewells School | AI46: n | AJ46: Alehousewells School | AK46: 2025-06-02 | AL46: 0 | AM46: 0 | AN46: 2
A47: 45607 | C47: 2024-11-11 | D47: 0 | F47: 0 | H47: 0 | J47: 0 | L47: 0 | N47: 0 | O47: 0 | P47: 0 | Q47: 0 | R47: 0 | S47: 0 | U47: 682.5 | AB47: 2024-09-22 | AC47: 1 | AD47: 1 | AE47: 2021-09-19 | AH47: Alford Academy | AI47: n | AJ47: Alford Academy | AK47: 2025-02-07 | AL47: 0 | AM47: 0 | AN47: 1
A48: 45614 | C48: 2024-11-18 | D48: 0 | F48: 0 | H48: 0 | J48: 0 | L48: 0 | N48: 0 | O48: 0 | P48: 0 | Q48: 0 | R48: 0 | S48: 0 | U48: 682.5 | AB48: 2024-09-28 | AC48: 1 | AD48: 1 | AE48: 2021-09-25 | AH48: Alford Academy | AI48: n | AJ48: Alford Academy | AK48: 2025-06-02 | AL48: 0 | AM48: 0 | AN48: 2
A49: 45621 | C49: 2024-11-25 | D49: 0 | F49: 0 | H49: 0 | J49: 0 | L49: 0 | N49: 0 | O49: 0 | P49: 0 | Q49: 0 | R49: 0 | S49: 0 | U49: 682.5 | AB49: 2024-09-29 | AC49: 1 | AD49: 1 | AE49: 2021-09-26 | AH49: Alford School | AI49: n | AJ49: Alford School | AK49: 2025-02-07 | AL49: 0 | AM49: 0 | AN49: 1
A50: 45628 | C50: 2024-12-02 | D50: 0 | F50: 0 | H50: 0 | J50: 0 | L50: 0 | N50: 0 | O50: 0 | P50: 0 | Q50: 0 | R50: 0 | S50: 0 | U50: 682.5 | AB50: 2024-10-05 | AC50: 1 | AD50: 1 | AE50: 2021-10-02 | AH50: Alford School | AI50: n | AJ50: Alford School | AK50: 2025-06-02 | AL50: 0 | AM50: 0 | AN50: 2
A51: 45635 | C51: 2024-12-09 | D51: 0 | F51: 0 | H51: 0 | J51: 0 | L51: 0 | N51: 0 | O51: 0 | P51: 0 | Q51: 0 | R51: 0 | S51: 0 | U51: 682.5 | AB51: 2024-10-06 | AC51: 1 | AD51: 1 | AE51: 2021-10-03 | AH51: Anna Ritchie School | AI51: n | AJ51: Anna Ritchie School | AK51: 2025-02-07 | AL51: 0 | AM51: 0 | AN51: 1
A52: 45642 | C52: 2024-12-16 | D52: 0 | F52: 0 | H52: 0 | J52: 0 | L52: 0 | N52: 0 | O52: 0 | P52: 0 | Q52: 0 | R52: 0 | S52: 0 | U52: 682.5 | AB52: 2024-10-12 | AC52: 1 | AD52: 1 | AE52: 2021-10-09 | AH52: Anna Ritchie School | AI52: n | AJ52: Anna Ritchie School | AK52: 2025-06-02 | AL52: 0 | AM52: 0 | AN52: 2
A53: 45649 | C53: 2024-12-23 | D53: 0 | F53: 0 | H53: 0 | J53: 0 | L53: 0 | N53: 0 | O53: 0 | P53: 0 | Q53: 0 | R53: 0 | S53: 0 | U53: 682.5 | AB53: 2024-10-13 | AC53: 1 | AD53: 1 | AE53: 2021-10-10 | AH53: Arduthie School | AI53: n | AJ53: Arduthie School | AK53: 2025-02-07 | AL53: 0 | AM53: 0 | AN53: 1
A54: 45656 | C54: 2024-12-30 | D54: 0 | F54: 0 | H54: 0 | J54: 0 | L54: 0 | N54: 0 | O54: 0 | P54: 0 | Q54: 0 | R54: 0 | S54: 0 | U54: 682.5 | AB54: 2024-10-14 | AC54: 1 | AD54: 1 | AE54: 2021-10-16 | AH54: Arduthie School | AI54: n | AJ54: Arduthie School | AK54: 2025-06-02 | AL54: 0 | AM54: 0 | AN54: 2
A55: 45663 | C55: 2025-01-06 | D55: 0 | F55: 0 | H55: 0 | J55: 0 | L55: 0 | N55: 0 | O55: 0 | P55: 0 | Q55: 0 | R55: 0 | S55: 0 | U55: 682.5 | AB55: 2024-10-15 | AC55: 1 | AD55: 1 | AE55: 2021-10-17 | AH55: Arnage School | AI55: y | AJ55: Arnage School | AK55: 2025-02-07 | AL55: 1 | AM55: 1 | AN55: 1
A56: 45670 | C56: 2025-01-13 | D56: 0 | F56: 0 | H56: 0 | J56: 0 | L56: 0 | N56: 0 | O56: 0 | P56: 0 | Q56: 0 | R56: 0 | S56: 0 | U56: 682.5 | AB56: 2024-10-16 | AC56: 1 | AD56: 1 | AE56: 2021-10-18 | AH56: Arnage School | AI56: y | AJ56: Arnage School | AK56: 2025-06-02 | AL56: 1 | AM56: 1 | AN56: 2
A57: 45677 | C57: 2025-01-20 | D57: 0 | F57: 0 | H57: 0 | J57: 0 | L57: 0 | N57: 0 | O57: 0 | P57: 0 | Q57: 0 | R57: 0 | S57: 0 | U57: 682.5 | AB57: 2024-10-17 | AC57: 1 | AD57: 1 | AE57: 2021-10-19 | AH57: Auchenblae School | AI57: n | AJ57: Auchenblae School | AK57: 2025-02-06 | AL57: 0 | AM57: 0 | AN57: 1
A58: 45684 | C58: 2025-01-27 | D58: 0 | F58: 0 | H58: 0 | J58: 0 | L58: 0 | N58: 0 | O58: 0 | P58: 0 | Q58: 0 | R58: 0 | S58: 0 | U58: 682.5 | AB58: 2024-10-18 | AC58: 1 | AD58: 1 | AE58: 2021-10-20 | AH58: Auchenblae School | AI58: n | AJ58: Auchenblae School | AK58: 2025-02-07 | AL58: 0 | AM58: 0 | AN58: 2
A59: 45691 | C59: 2025-02-03 | D59: 0 | F59: 0 | H59: 0 | J59: 0 | L59: 0 | N59: 0 | O59: 0 | P59: 0 | Q59: 0 | R59: 0 | S59: 0 | U59: 682.5 | AB59: 2024-10-19 | AC59: 1 | AD59: 1 | AE59: 2021-10-21 | AH59: Auchnagatt School | AI59: n | AJ59: Auchnagatt School | AK59: 2025-02-07 | AL59: 0 | AM59: 0 | AN59: 1
A60: 45698 | C60: 2025-02-10 | D60: 0 | F60: 0 | H60: 0 | J60: 0 | L60: 0 | N60: 0 | O60: 0 | P60: =COUNTIF(D60:L60,"LSA") -> 0 | Q60: =COUNTIF(D60:L60,"LHE") -> 0 | R60: =COUNTIF(D60:L60,"LSL") -> 0 | S60: =SUM(D60:O60) -> 0 | U60: 682.5 | AB60: 2024-10-20 | AC60: 1 | AD60: 1 | AE60: 2021-10-22 | AH60: Auchnagatt School | AI60: n | AJ60: Auchnagatt School | AK60: 2025-06-02 | AL60: 0 | AM60: 0 | AN60: 2
A61: 45705 | C61: 2025-02-17 | D61: 0 | F61: 0 | H61: 0 | J61: 0 | L61: 0 | N61: 0 | O61: 0 | P61: 0 | Q61: 0 | R61: 0 | S61: 0 | U61: 682.5 | AB61: 2024-10-21 | AC61: 1 | AD61: 1 | AE61: 2021-10-23 | AH61: Auchterellon School | AI61: n | AJ61: Auchterellon School | AK61: 2025-02-07 | AL61: 0 | AM61: 0 | AN61: 1
A62: 45712 | C62: 2025-02-24 | D62: 0 | F62: 0 | H62: 0 | J62: 0 | L62: 0 | N62: 0 | O62: 0 | P62: 0 | Q62: 0 | R62: 0 | S62: 0 | U62: 682.5 | AB62: 2024-10-22 | AC62: 1 | AD62: 1 | AE62: 2021-10-24 | AH62: Auchterellon School | AI62: n | AJ62: Auchterellon School | AK62: 2025-06-02 | AL62: 0 | AM62: 0 | AN62: 2
A63: 45719 | C63: 2025-03-03 | D63: 0 | F63: 0 | H63: 0 | J63: 0 | L63: 0 | N63: 0 | O63: 0 | P63: 0 | Q63: 0 | R63: 0 | S63: 0 | U63: 682.5 | AB63: 2024-10-23 | AC63: 1 | AD63: 1 | AE63: 2021-10-25 | AH63: Auchterless School | AI63: n | AJ63: Auchterless School | AK63: 2025-02-07 | AL63: 0 | AM63: 0 | AN63: 1
A64: 45726 | C64: 2025-03-10 | D64: 0 | F64: 0 | H64: 0 | J64: 0 | L64: 0 | N64: 0 | O64: 0 | P64: 0 | Q64: 0 | R64: 0 | S64: 0 | U64: 682.5 | AB64: 2024-10-24 | AC64: 1 | AD64: 1 | AE64: 2021-10-26 | AH64: Auchterless School | AI64: n | AJ64: Auchterless School | AK64: 2025-06-02 | AL64: 0 | AM64: 0 | AN64: 2
A65: 45733 | C65: 2025-03-17 | D65: 0 | F65: 0 | H65: 0 | J65: 0 | L65: 0 | N65: 0 | O65: 0 | P65: 0 | Q65: 0 | R65: 0 | S65: 0 | U65: 682.5 | AB65: 2024-10-25 | AC65: 1 | AD65: 1 | AE65: 2021-10-27 | AH65: Ballater School | AI65: n | AJ65: Ballater School | AK65: 2025-02-06 | AL65: 0 | AM65: 0 | AN65: 1
A66: 45740 | C66: 2025-03-24 | D66: 0 | F66: 0 | H66: 0 | J66: 0 | L66: 0 | N66: 0 | O66: 0 | P66: 0 | Q66: 0 | R66: 0 | S66: 0 | U66: 682.5 | AB66: 2024-10-26 | AC66: 1 | AD66: 1 | AE66: 2021-10-28 | AH66: Ballater School | AI66: n | AJ66: Ballater School | AK66: 2025-02-07 | AL66: 0 | AM66: 0 | AN66: 2
A67: 45747 | C67: 2025-03-31 | D67: 0 | F67: 0 | H67: 0 | J67: 0 | L67: 0 | N67: 0 | O67: 0 | P67: 0 | Q67: 0 | R67: =COUNTIF(D67:L67,"LSL") -> 0 | S67: =SUM(D67:O67) -> 0 | U67: 682.5 | AB67: 2024-10-27 | AC67: 1 | AD67: 1 | AE67: 2021-10-29 | AH67: Balmedie School | AI67: n | AJ67: Balmedie School | AK67: 2025-02-07 | AL67: 0 | AM67: 0 | AN67: 1
A68: 45754 | C68: =C67+7 -> 2025-04-07 | D68: 0 | F68: 0 | H68: 0 | J68: 0 | L68: 0 | N68: 0 | O68: 0 | P68: =COUNTIF(D68:L68,"LSA") -> 0 | Q68: 0 | R68: 0 | S68: 0 | U68: =U67-S68 -> 682.5 | AB68: 2024-11-02 | AC68: 1 | AD68: 1 | AE68: 2021-10-30 | AH68: Balmedie School | AI68: n | AJ68: Balmedie School | AK68: 2025-06-02 | AL68: 0 | AM68: 0 | AN68: 2
A69: 45761 | C69: 2025-04-14 | D69: 0 | F69: 0 | H69: 0 | J69: 0 | L69: 0 | N69: 0 | O69: 0 | P69: =COUNTIF(D69:K69,"LSA") -> 0 | Q69: =COUNTIF(D69:K69,"LHE") -> 0 | R69: =COUNTIF(D69:K69,"LSL") -> 0 | S69: 0 | U69: 682.5 | AB69: 2024-11-03 | AC69: 1 | AD69: 1 | AE69: 2021-10-31 | AH69: Banchory Academy | AI69: n | AJ69: Banchory Academy | AK69: 2025-02-07 | AL69: 0 | AM69: 0 | AN69: 1
A70: 45768 | C70: 2025-04-21 | D70: 0 | F70: 0 | H70: 0 | J70: 0 | L70: 0 | N70: 0 | O70: 0 | P70: 0 | Q70: 0 | R70: 0 | S70: 0 | U70: 682.5 | AB70: 2024-11-09 | AC70: =IF($AB70<$Z$38,"0",IF($AB70<$Z$39,"1","0")) -> 1 | AD70: 1 | AE70: 2021-11-06 | AH70: Banchory Academy | AI70: n | AJ70: Banchory Academy | AK70: 2025-06-02 | AL70: 0 | AM70: 0 | AN70: 2
A71: 45775 | C71: 2025-04-28 | D71: 0 | F71: 0 | H71: 0 | J71: 0 | L71: 0 | N71: 0 | O71: 0 | P71: 0 | Q71: 0 | R71: 0 | S71: 0 | U71: 682.5 | AB71: 2024-11-10 | AC71: 1 | AD71: 1 | AE71: 2021-11-07 | AH71: Banchory School | AI71: n | AJ71: Banchory School | AK71: 2025-02-07 | AL71: 0 | AM71: 0 | AN71: 1
A72: 45782 | C72: 2025-05-05 | D72: 0 | F72: 0 | H72: 0 | J72: 0 | L72: 0 | N72: 0 | O72: 0 | P72: 0 | Q72: 0 | R72: 0 | S72: 0 | U72: 682.5 | AB72: 2024-11-16 | AC72: 1 | AD72: 1 | AE72: 2021-11-13 | AH72: Banchory School | AI72: n | AJ72: Banchory School | AK72: 2025-06-02 | AL72: 0 | AM72: 0 | AN72: 2
A73: 45789 | C73: 2025-05-12 | D73: 0 | F73: 0 | H73: 0 | J73: 0 | L73: 0 | N73: 0 | O73: 0 | P73: 0 | Q73: 0 | R73: 0 | S73: 0 | U73: 682.5 | AB73: 2024-11-17 | AC73: 1 | AD73: 1 | AE73: 2021-11-14 | AH73: Banchory-Devenick Sch. | AI73: n | AJ73: Banchory-Devenick Sch. | AK73: 2025-02-06 | AL73: 0 | AM73: 0 | AN73: 1
A74: 45796 | C74: 2025-05-19 | D74: 0 | F74: 0 | H74: 0 | J74: 0 | L74: 0 | N74: 0 | O74: 0 | P74: 0 | Q74: 0 | R74: 0 | S74: 0 | U74: 682.5 | AB74: 2024-11-23 | AC74: 1 | AD74: 1 | AE74: 2021-11-20 | AH74: Banchory-Devenick Sch. | AI74: n | AJ74: Banchory-Devenick Sch. | AK74: 2025-02-07 | AL74: 0 | AM74: 0 | AN74: 2
A75: 45803 | C75: 2025-05-26 | D75: 0 | F75: 0 | H75: 0 | J75: 0 | L75: 0 | N75: 0 | O75: 0 | P75: 0 | Q75: 0 | R75: 0 | S75: 0 | U75: 682.5 | AB75: 2024-11-24 | AC75: 1 | AD75: 1 | AE75: 2021-11-21 | AH75: Banff School | AI75: n | AJ75: Banff School | AK75: 2025-02-07 | AL75: 0 | AM75: 0 | AN75: 1
A76: 45810 | C76: 2025-06-02 | D76: 0 | F76: 0 | H76: 0 | J76: 0 | L76: 0 | N76: 0 | O76: 0 | P76: 0 | Q76: 0 | R76: 0 | S76: 0 | U76: 682.5 | AB76: 2024-11-30 | AC76: 1 | AD76: 1 | AE76: 2021-11-27 | AH76: Banff School | AI76: n | AJ76: Banff School | AK76: 2025-06-02 | AL76: 0 | AM76: 0 | AN76: 2
A77: 45817 | C77: 2025-06-09 | D77: 0 | F77: 0 | H77: 0 | J77: 0 | L77: 0 | N77: 0 | O77: 0 | P77: 0 | Q77: 0 | R77: 0 | S77: 0 | U77: 682.5 | AB77: 2024-12-01 | AC77: 1 | AD77: 1 | AE77: 2021-11-28 | AH77: Banff Academy | AI77: n | AJ77: Banff Academy | AK77: 2025-02-07 | AL77: 0 | AM77: 0 | AN77: 1
A78: 45824 | C78: 2025-06-16 | D78: 0 | F78: 0 | H78: 0 | J78: 0 | L78: 0 | N78: 0 | O78: 0 | P78: 0 | Q78: 0 | R78: 0 | S78: 0 | U78: 682.5 | AB78: 2024-12-07 | AC78: 1 | AD78: 1 | AE78: 2021-12-04 | AH78: Banff Academy | AI78: n | AJ78: Banff Academy | AK78: 2025-06-02 | AL78: 0 | AM78: 0 | AN78: 2
A79: 45831 | C79: 2025-06-23 | D79: 0 | F79: 0 | H79: 0 | J79: 0 | L79: 0 | N79: 0 | O79: 0 | P79: 0 | Q79: 0 | R79: 0 | S79: 0 | U79: 682.5 | AB79: 2024-12-08 | AC79: 1 | AD79: 1 | AE79: 2021-12-05 | AH79: Barthol Chapel School | AI79: n | AJ79: Barthol Chapel School | AK79: 2025-02-07 | AL79: 0 | AM79: 0 | AN79: 1
A80: 45838 | C80: 2025-06-30 | D80: 0 | F80: 0 | H80: 0 | J80: 0 | L80: 0 | N80: 0 | O80: 0 | P80: 0 | Q80: 0 | R80: 0 | S80: 0 | U80: 682.5 | AB80: 2024-12-14 | AC80: 1 | AD80: 1 | AE80: 2021-12-11 | AH80: Barthol Chapel School | AI80: n | AJ80: Barthol Chapel School | AK80: 2025-06-02 | AL80: 0 | AM80: 0 | AN80: 2
A81: 45845 | C81: 2025-07-07 | D81: 0 | F81: 0 | H81: 0 | J81: 0 | L81: 0 | N81: 0 | O81: 0 | P81: 0 | Q81: 0 | R81: 0 | S81: 0 | U81: 682.5 | AB81: 2024-12-15 | AC81: 1 | AD81: 1 | AE81: 2021-12-12 | AH81: Bervie School | AI81: n | AJ81: Bervie School | AK81: 2025-02-07 | AL81: 0 | AM81: 0 | AN81: 1
A82: 45852 | C82: 2025-07-14 | D82: 0 | F82: 0 | H82: 0 | J82: 0 | L82: 0 | N82: 0 | O82: 0 | P82: 0 | Q82: 0 | R82: 0 | S82: 0 | U82: 682.5 | AB82: 2024-12-21 | AC82: 1 | AD82: 1 | AE82: 2021-12-18 | AH82: Bervie School | AI82: n | AJ82: Bervie School | AK82: 2025-06-02 | AL82: 0 | AM82: 0 | AN82: 2
A83: 45859 | C83: 2025-07-21 | D83: 0 | F83: 0 | H83: 0 | J83: 0 | L83: 0 | N83: 0 | O83: 0 | P83: 0 | Q83: 0 | R83: 0 | S83: 0 | U83: 682.5 | AB83: 2024-12-22 | AC83: 1 | AD83: 1 | AE83: 2021-12-19 | AH83: Boddam School | AI83: n | AJ83: Boddam School | AK83: 2025-02-07 | AL83: 0 | AM83: 0 | AN83: 1
A84: 45866 | C84: 2025-07-28 | D84: 0 | F84: 0 | H84: 0 | J84: 0 | L84: 0 | N84: 0 | O84: 0 | P84: 0 | Q84: 0 | R84: 0 | S84: 0 | U84: 682.5 | AB84: 2024-12-23 | AC84: 1 | AD84: 1 | AE84: 2021-12-22 | AH84: Boddam School | AI84: n | AJ84: Boddam School | AK84: 2025-06-02 | AL84: 0 | AM84: 0 | AN84: 2
A85: 45873 | C85: 2025-08-04 | D85: 0 | F85: 0 | H85: 0 | J85: 0 | L85: 0 | N85: 0 | O85: 0 | P85: 0 | Q85: 0 | R85: 0 | S85: 0 | U85: 682.5 | AB85: 2024-12-24 | AC85: 1 | AD85: 1 | AE85: 2021-12-23 | AH85: Bracoden School | AI85: n | AJ85: Bracoden School | AK85: 2025-02-07 | AL85: 0 | AM85: 0 | AN85: 1
A86: 45880 | C86: 2025-08-11 | D86: 0 | F86: 0 | H86: 0 | J86: 0 | L86: 0 | N86: 0 | O86: 0 | P86: 0 | Q86: 0 | R86: 0 | S86: 0 | U86: 682.5 | AB86: 2024-12-25 | AC86: 1 | AD86: 1 | AE86: 2021-12-24 | AH86: Bracoden School | AI86: n | AJ86: Bracoden School | AK86: 2025-06-02 | AL86: 0 | AM86: 0 | AN86: 2
AB87: 2024-12-26 | AC87: 1 | AD87: 1 | AE87: 2021-12-25 | AH87: Braemar School | AI87: =IF(AH87 = $U$7,"y","n") -> n | AJ87: Braemar School | AK87: 2025-02-06 | AL87: 0 | AM87: =VALUE(AL87) -> 0 | AN87: 1
AB88: 2024-12-27 | AC88: 1 | AD88: 1 | AE88: 2021-12-26 | AH88: Braemar School | AI88: n | AJ88: Braemar School | AK88: 2025-02-07 | AL88: 0 | AM88: 0 | AN88: 2
AB89: 2024-12-28 | AC89: 1 | AD89: 1 | AE89: 2021-12-27 | AH89: Buchanhaven School | AI89: n | AJ89: Buchanhaven School | AK89: 2025-02-07 | AL89: 0 | AM89: 0 | AN89: 1
AB90: 2024-12-29 | AC90: 1 | AD90: 1 | AE90: 2021-12-28 | AH90: Buchanhaven School | AI90: n | AJ90: Buchanhaven School | AK90: 2025-06-02 | AL90: 0 | AM90: 0 | AN90: 2
AB91: 2024-12-30 | AC91: 1 | AD91: 1 | AE91: 2021-12-29 | AH91: Burnhaven School | AI91: n | AJ91: Burnhaven School | AK91: 2025-02-07 | AL91: 0 | AM91: 0 | AN91: 1
AB92: 2024-12-31 | AC92: 1 | AD92: 1 | AE92: 2021-12-30 | AH92: Burnhaven School | AI92: n | AJ92: Burnhaven School | AK92: 2025-06-02 | AL92: 0 | AM92: 0 | AN92: 2
AB93: 2025-01-01 | AC93: 1 | AD93: 1 | AE93: 2021-12-31 | AH93: Cairney School | AI93: n | AJ93: Cairney School | AK93: 2025-02-07 | AL93: 0 | AM93: 0 | AN93: 1
AB94: 2025-01-02 | AC94: 1 | AD94: 1 | AE94: 2022-01-01 | AH94: Cairney School | AI94: n | AJ94: Cairney School | AK94: 2025-06-02 | AL94: 0 | AM94: 0 | AN94: 2
AB95: 2025-01-03 | AC95: 1 | AD95: 1 | AE95: 2022-01-02 | AH95: Carronhill School | AI95: n | AJ95: Carronhill School | AK95: 2025-02-07 | AL95: 0 | AM95: 0 | AN95: 1
AB96: 2025-01-04 | AC96: 1 | AD96: 1 | AE96: 2022-01-03 | AH96: Carronhill School | AI96: n | AJ96: Carronhill School | AK96: 2025-06-02 | AL96: 0 | AM96: 0 | AN96: 2
AB97: 2025-01-05 | AC97: 1 | AD97: 1 | AE97: 2022-01-04 | AH97: Catterline School | AI97: n | AJ97: Catterline School | AK97: 2025-02-07 | AL97: 0 | AM97: 0 | AN97: 1
AB98: 2025-01-11 | AC98: 1 | AD98: 1 | AE98: 2022-01-08 | AH98: Catterline School | AI98: n | AJ98: Catterline School | AK98: 2025-06-02 | AL98: 0 | AM98: 0 | AN98: 2
AB99: 2025-01-12 | AC99: 1 | AD99: 1 | AE99: 2022-01-09 | AH99: Chapel of Garioch School | AI99: n | AJ99: Chapel of Garioch School | AK99: 2025-02-07 | AL99: 0 | AM99: 0 | AN99: 1
AB100: 2025-01-18 | AC100: 1 | AD100: 1 | AE100: 2022-01-15 | AH100: Chapel of Garioch School | AI100: n | AJ100: Chapel of Garioch School | AK100: 2025-06-02 | AL100: 0 | AM100: 0 | AN100: 2
AB101: 2025-01-19 | AC101: 1 | AD101: =VALUE(AC101) -> 1 | AE101: 2022-01-16 | AH101: Clatt School | AI101: =IF(AH101 = $U$7,"y","n") -> n | AJ101: Clatt School | AK101: 2025-02-07 | AL101: 0 | AM101: =VALUE(AL101) -> 0 | AN101: 1
AB102: 2025-01-25 | AC102: =IF($AB102<$Z$38,"0",IF($AB102<$Z$39,"1","0")) -> 1 | AD102: 1 | AE102: 2022-01-22 | AH102: Clatt School | AI102: n | AJ102: Clatt School | AK102: 2025-06-02 | AL102: =IF(AH102<>$U$7,"0",IF(AK102<$Z$38,"0",IF(AK102<$Z$39,"1","0"))) -> 0 | AM102: 0 | AN102: 2
AB103: 2025-01-26 | AC103: 1 | AD103: 1 | AE103: 2022-01-23 | AH103: Clerkhill School | AI103: n | AJ103: Clerkhill School | AK103: 2025-02-07 | AL103: 0 | AM103: 0 | AN103: 1
AB104: 2025-02-01 | AC104: 1 | AD104: 1 | AE104: 2022-01-29 | AH104: Clerkhill School | AI104: n | AJ104: Clerkhill School | AK104: 2025-06-02 | AL104: 0 | AM104: 0 | AN104: 2
AB105: 2025-02-02 | AC105: 1 | AD105: 1 | AE105: 2022-01-30 | AH105: Cluny School | AI105: n | AJ105: Cluny School | AK105: 2025-02-07 | AL105: 0 | AM105: 0 | AN105: 1
AB106: 2025-02-08 | AC106: 1 | AD106: 1 | AE106: 2022-02-05 | AH106: Cluny School | AI106: n | AJ106: Cluny School | AK106: 2025-06-02 | AL106: 0 | AM106: 0 | AN106: 2
AB107: 2025-02-09 | AC107: 1 | AD107: 1 | AE107: 2022-02-06 | AH107: Craigievar School | AI107: n | AJ107: Craigievar School | AK107: 2025-02-07 | AL107: 0 | AM107: 0 | AN107: 1
AB108: 2025-02-10 | AC108: 1 | AD108: 1 | AE108: 2022-02-12 | AH108: Craigievar School | AI108: n | AJ108: Craigievar School | AK108: 2025-06-02 | AL108: 0 | AM108: 0 | AN108: 2
AB109: 2025-02-15 | AC109: 1 | AD109: 1 | AE109: 2022-02-13 | AH109: Crathes School | AI109: n | AJ109: Crathes School | AK109: 2025-02-07 | AL109: 0 | AM109: 0 | AN109: 1
AB110: 2025-02-16 | AC110: 1 | AD110: 1 | AE110: 2022-02-14 | AH110: Crathes School | AI110: n | AJ110: Crathes School | AK110: 2025-06-02 | AL110: 0 | AM110: 0 | AN110: 2
AB111: 2025-02-22 | AC111: 1 | AD111: 1 | AE111: 2022-02-19 | AH111: Crathie School | AI111: n | AJ111: Crathie School | AK111: 2025-02-06 | AL111: 0 | AM111: 0 | AN111: 1
AB112: 2025-02-23 | AC112: 1 | AD112: 1 | AE112: 2022-02-20 | AH112: Crathie School | AI112: n | AJ112: Crathie School | AK112: 2025-02-07 | AL112: 0 | AM112: 0 | AN112: 2
AB113: 2025-03-01 | AC113: 1 | AD113: 1 | AE113: 2022-02-26 | AH113: Crimond School | AI113: n | AJ113: Crimond School | AK113: 2025-02-07 | AL113: 0 | AM113: 0 | AN113: 1
AB114: 2025-03-02 | AC114: 1 | AD114: 1 | AE114: 2022-02-27 | AH114: Crimond School | AI114: n | AJ114: Crimond School | AK114: 2025-06-02 | AL114: 0 | AM114: 0 | AN114: 2
AB115: 2025-03-08 | AC115: 1 | AD115: 1 | AE115: 2022-03-05 | AH115: Crombie School | AI115: n | AJ115: Crombie School | AK115: 2025-02-06 | AL115: 0 | AM115: 0 | AN115: 1
AB116: 2025-03-09 | AC116: 1 | AD116: 1 | AE116: 2022-03-06 | AH116: Crombie School | AI116: n | AJ116: Crombie School | AK116: 2025-02-07 | AL116: 0 | AM116: 0 | AN116: 2
AB117: 2025-03-15 | AC117: 1 | AD117: 1 | AE117: 2022-03-12 | AH117: Crudie School | AI117: n | AJ117: Crudie School | AK117: 2025-02-07 | AL117: 0 | AM117: 0 | AN117: 1
AB118: 2025-03-16 | AC118: 1 | AD118: 1 | AE118: 2022-03-13 | AH118: Crudie School | AI118: n | AJ118: Crudie School | AK118: 2025-06-02 | AL118: 0 | AM118: 0 | AN118: 2
AB119: 2025-03-22 | AC119: 1 | AD119: 1 | AE119: 2022-03-19 | AH119: Cultercullen School | AI119: n | AJ119: Cultercullen School | AK119: 2025-02-07 | AL119: 0 | AM119: 0 | AN119: 1
AB120: 2025-03-23 | AC120: 1 | AD120: 1 | AE120: 2022-03-20 | AH120: Cultercullen School | AI120: n | AJ120: Cultercullen School | AK120: 2025-06-02 | AL120: 0 | AM120: 0 | AN120: 2
AB121: 2025-03-29 | AC121: 1 | AD121: 1 | AE121: 2022-03-26 | AH121: Dales Park School | AI121: n | AJ121: Dales Park School | AK121: 2025-02-07 | AL121: 0 | AM121: 0 | AN121: 1
AB122: 2025-03-30 | AC122: 1 | AD122: 1 | AE122: 2022-03-27 | AH122: Dales Park School | AI122: n | AJ122: Dales Park School | AK122: 2025-06-02 | AL122: 0 | AM122: 0 | AN122: 2
AB123: 2025-03-31 | AC123: 1 | AD123: 1 | AE123: 2022-04-02 | AH123: Daviot School | AI123: n | AJ123: Daviot School | AK123: 2025-02-07 | AL123: 0 | AM123: 0 | AN123: 1
AB124: 2025-04-01 | AC124: 1 | AD124: 1 | AE124: 2022-04-03 | AH124: Daviot School | AI124: n | AJ124: Daviot School | AK124: 2025-06-02 | AL124: 0 | AM124: 0 | AN124: 2
AB125: 2025-04-02 | AC125: 1 | AD125: 1 | AE125: 2022-04-04 | AH125: Drumblade School | AI125: n | AJ125: Drumblade School | AK125: 2025-02-07 | AL125: 0 | AM125: 0 | AN125: 1
AB126: 2025-04-03 | AC126: 1 | AD126: 1 | AE126: 2022-04-05 | AH126: Drumblade School | AI126: n | AJ126: Drumblade School | AK126: 2025-06-02 | AL126: 0 | AM126: 0 | AN126: 2
AB127: 2025-04-04 | AC127: 1 | AD127: 1 | AE127: 2022-04-06 | AH127: Drumoak School | AI127: n | AJ127: Drumoak School | AK127: 2025-02-07 | AL127: 0 | AM127: 0 | AN127: 1
AB128: 2025-04-05 | AC128: 1 | AD128: 1 | AE128: 2022-04-07 | AH128: Drumoak School | AI128: n | AJ128: Drumoak School | AK128: 2025-06-02 | AL128: 0 | AM128: 0 | AN128: 2
AB129: 2025-04-06 | AC129: 1 | AD129: 1 | AE129: 2022-04-08 | AH129: Dunecht School | AI129: n | AJ129: Dunecht School | AK129: 2025-02-07 | AL129: 0 | AM129: 0 | AN129: 1
AB130: 2025-04-07 | AC130: 1 | AD130: 1 | AE130: 2022-04-09 | AH130: Dunecht School | AI130: n | AJ130: Dunecht School | AK130: 2025-06-02 | AL130: 0 | AM130: 0 | AN130: 2
AB131: 2025-04-08 | AC131: 1 | AD131: 1 | AE131: 2022-04-10 | AH131: Dunnottar School | AI131: n | AJ131: Dunnottar School | AK131: 2025-02-07 | AL131: 0 | AM131: 0 | AN131: 1
AB132: 2025-04-09 | AC132: 1 | AD132: 1 | AE132: 2022-04-11 | AH132: Dunnottar School | AI132: n | AJ132: Dunnottar School | AK132: 2025-06-02 | AL132: 0 | AM132: 0 | AN132: 2
AB133: 2025-04-10 | AC133: 1 | AD133: 1 | AE133: 2022-04-12 | AH133: Durris School | AI133: n | AJ133: Durris School | AK133: 2025-02-07 | AL133: 0 | AM133: 0 | AN133: 1
AB134: 2025-04-11 | AC134: =IF($AB134<$Z$38,"0",IF($AB134<$Z$39,"1","0")) -> 1 | AD134: 1 | AE134: 2022-04-13 | AH134: Durris School | AI134: n | AJ134: Durris School | AK134: 2025-06-02 | AL134: 0 | AM134: 0 | AN134: 2
AB135: 2025-04-12 | AC135: 1 | AD135: 1 | AE135: 2022-04-14 | AH135: Easterfield School | AI135: n | AJ135: Easterfield School | AK135: 2025-02-07 | AL135: 0 | AM135: 0 | AN135: 1
AB136: 2025-04-13 | AC136: 1 | AD136: 1 | AE136: 2022-04-15 | AH136: Easterfield School | AI136: n | AJ136: Easterfield School | AK136: 2025-06-02 | AL136: 0 | AM136: 0 | AN136: 2
AB137: 2025-04-18 | AC137: 1 | AD137: 1 | AE137: 2022-04-16 | AH137: Echt School | AI137: n | AJ137: Echt School | AK137: 2025-02-07 | AL137: 0 | AM137: 0 | AN137: 1
AB138: 2025-04-19 | AC138: 1 | AD138: 1 | AE138: 2022-04-17 | AH138: Echt School | AI138: n | AJ138: Echt School | AK138: 2025-06-02 | AL138: 0 | AM138: 0 | AN138: 2
AB139: 2025-04-20 | AC139: 1 | AD139: 1 | AE139: 2022-04-23 | AH139: Ellon Academy | AI139: n | AJ139: Ellon Academy | AK139: 2025-02-07 | AL139: 0 | AM139: 0 | AN139: 1
AB140: 2025-04-26 | AC140: 1 | AD140: 1 | AE140: 2022-04-24 | AH140: Ellon Academy | AI140: n | AJ140: Ellon Academy | AK140: 2025-06-02 | AL140: 0 | AM140: 0 | AN140: 2
AB141: 2025-04-27 | AC141: 1 | AD141: 1 | AE141: 2022-04-30 | AH141: Ellon School | AI141: n | AJ141: Ellon School | AK141: 2025-02-07 | AL141: 0 | AM141: 0 | AN141: 1
AB142: 2025-05-03 | AC142: 1 | AD142: 1 | AE142: 2022-05-01 | AH142: Ellon School | AI142: n | AJ142: Ellon School | AK142: 2025-06-02 | AL142: 0 | AM142: 0 | AN142: 2
AB143: 2025-05-04 | AC143: 1 | AD143: 1 | AE143: 2022-05-02 | AH143: Elrick School | AI143: n | AJ143: Elrick School | AK143: 2025-02-06 | AL143: 0 | AM143: 0 | AN143: 1
AB144: 2025-05-05 | AC144: 1 | AD144: 1 | AE144: 2022-05-07 | AH144: Elrick School | AI144: n | AJ144: Elrick School | AK144: 2025-02-07 | AL144: 0 | AM144: 0 | AN144: 2
AB145: 2025-05-10 | AC145: 1 | AD145: 1 | AE145: 2022-05-08 | AH145: Fetterangus School | AI145: n | AJ145: Fetterangus School | AK145: 2025-02-07 | AL145: 0 | AM145: 0 | AN145: 1
AB146: 2025-05-11 | AC146: 1 | AD146: 1 | AE146: 2022-05-14 | AH146: Fetterangus School | AI146: n | AJ146: Fetterangus School | AK146: 2025-06-02 | AL146: 0 | AM146: 0 | AN146: 2
AB147: 2025-05-17 | AC147: 1 | AD147: 1 | AE147: 2022-05-15 | AH147: Fettercairn School | AI147: n | AJ147: Fettercairn School | AK147: 2025-02-06 | AL147: 0 | AM147: 0 | AN147: 1
AB148: 2025-05-18 | AC148: 1 | AD148: 1 | AE148: 2022-05-21 | AH148: Fettercairn School | AI148: n | AJ148: Fettercairn School | AK148: 2025-02-07 | AL148: 0 | AM148: 0 | AN148: 2
AB149: 2025-05-24 | AC149: 1 | AD149: 1 | AE149: 2022-05-22 | AH149: Fintry School | AI149: n | AJ149: Fintry School | AK149: 2025-02-07 | AL149: 0 | AM149: 0 | AN149: 1
AB150: 2025-05-25 | AC150: 1 | AD150: 1 | AE150: 2022-05-28 | AH150: Fintry School | AI150: n | AJ150: Fintry School | AK150: 2025-06-02 | AL150: 0 | AM150: 0 | AN150: 2
AB151: 2025-05-31 | AC151: 1 | AD151: 1 | AE151: 2022-05-29 | AH151: Finzean School | AI151: n | AJ151: Finzean School | AK151: 2025-02-06 | AL151: 0 | AM151: 0 | AN151: 1
AB152: 2025-06-01 | AC152: 1 | AD152: 1 | AE152: 2022-06-04 | AH152: Finzean School | AI152: n | AJ152: Finzean School | AK152: 2025-02-07 | AL152: 0 | AM152: 0 | AN152: 2
AB153: 2025-06-07 | AC153: 1 | AD153: 1 | AE153: 2022-06-05 | AH153: Fisherford School | AI153: n | AJ153: Fisherford School | AK153: 2025-02-07 | AL153: 0 | AM153: 0 | AN153: 1
AB154: 2025-06-08 | AC154: 1 | AD154: 1 | AE154: 2022-06-11 | AH154: Fisherford School | AI154: n | AJ154: Fisherford School | AK154: 2025-06-02 | AL154: 0 | AM154: 0 | AN154: 2
AB155: 2025-06-14 | AC155: 1 | AD155: 1 | AE155: 2022-06-12 | AH155: Fishermoss School | AI155: n | AJ155: Fishermoss School | AK155: 2025-02-06 | AL155: 0 | AM155: 0 | AN155: 1
AB156: 2025-06-15 | AC156: 1 | AD156: =VALUE(AC156) -> 1 | AE156: 2022-06-18 | AH156: Fishermoss School | AI156: n | AJ156: Fishermoss School | AK156: 2025-02-07 | AL156: 0 | AM156: 0 | AN156: 2
AB157: 2025-06-21 | AC157: 1 | AD157: 1 | AE157: 2022-06-19 | AH157: Fordyce School | AI157: n | AJ157: Fordyce School | AK157: 2025-02-07 | AL157: 0 | AM157: 0 | AN157: 1
AB158: 2025-06-22 | AC158: 1 | AD158: 1 | AE158: 2022-06-25 | AH158: Fordyce School | AI158: n | AJ158: Fordyce School | AK158: 2025-06-02 | AL158: 0 | AM158: 0 | AN158: 2
AB159: 2025-06-28 | AC159: 1 | AD159: 1 | AE159: 2022-06-26 | AH159: Forgue School | AI159: n | AJ159: Forgue School | AK159: 2025-02-07 | AL159: 0 | AM159: 0 | AN159: 1
AB160: 2025-06-29 | AC160: 1 | AD160: 1 | AE160: 2022-07-02 | AH160: Forgue School | AI160: n | AJ160: Forgue School | AK160: 2025-06-02 | AL160: 0 | AM160: 0 | AN160: 2
AB161: 2025-07-05 | AC161: 1 | AD161: =VALUE(AC161) -> 1 | AE161: 2022-07-03 | AH161: Foveran School | AI161: n | AJ161: Foveran School | AK161: 2025-02-07 | AL161: 0 | AM161: 0 | AN161: 1
AB162: 2025-07-06 | AC162: 0 | AD162: 0 | AE162: 2022-07-04 | AH162: Foveran School | AI162: n | AJ162: Foveran School | AK162: 2025-06-02 | AL162: 0 | AM162: 0 | AN162: 2
AB163: 2025-07-07 | AC163: 0 | AD163: 0 | AE163: 2022-07-05 | AH163: Fraserburgh Academy | AI163: n | AJ163: Fraserburgh Academy | AK163: 2025-02-07 | AL163: 0 | AM163: 0 | AN163: 1
AB164: 2025-07-08 | AC164: 0 | AD164: 0 | AE164: 2022-07-06 | AH164: Fraserburgh Academy | AI164: n | AJ164: Fraserburgh Academy | AK164: 2025-06-02 | AL164: 0 | AM164: 0 | AN164: 2
AB165: 2025-07-09 | AC165: 0 | AD165: 0 | AE165: 2022-07-07 | AH165: Fraserburgh North School | AI165: =IF(AH165 = $U$7,"y","n") -> n | AJ165: Fraserburgh North School | AK165: 2025-02-07 | AL165: 0 | AM165: =VALUE(AL165) -> 0 | AN165: 1
AB166: 2025-07-10 | AC166: 0 | AD166: 0 | AE166: 2022-07-08 | AH166: Fraserburgh North School | AI166: n | AJ166: Fraserburgh North School | AK166: 2025-06-02 | AL166: =IF(AH166<>$U$7,"0",IF(AK166<$Z$38,"0",IF(AK166<$Z$39,"1","0"))) -> 0 | AM166: 0 | AN166: 2
AB167: 2025-07-11 | AC167: 0 | AD167: 0 | AE167: 2022-07-09 | AH167: Fraserburgh South Park | AI167: n | AJ167: Fraserburgh South Park | AK167: 2025-02-07 | AL167: 0 | AM167: 0 | AN167: 1
AB168: 2025-07-12 | AC168: 0 | AD168: 0 | AE168: 2022-07-10 | AH168: Fraserburgh South Park | AI168: n | AJ168: Fraserburgh South Park | AK168: 2025-06-02 | AL168: 0 | AM168: 0 | AN168: 2
AB169: 2025-07-13 | AC169: 0 | AD169: 0 | AE169: 2022-07-11 | AH169: Fyvie School | AI169: n | AJ169: Fyvie School | AK169: 2025-02-07 | AL169: 0 | AM169: 0 | AN169: 1
AB170: 2025-07-14 | AC170: 0 | AD170: 0 | AE170: 2022-07-12 | AH170: Fyvie School | AI170: n | AJ170: Fyvie School | AK170: 2025-06-02 | AL170: 0 | AM170: 0 | AN170: 2
AB171: 2025-07-15 | AC171: 0 | AD171: 0 | AE171: 2022-07-13 | AH171: Gartly School | AI171: n | AJ171: Gartly School | AK171: 2025-02-07 | AL171: 0 | AM171: 0 | AN171: 1
AB172: 2025-07-16 | AC172: 0 | AD172: 0 | AE172: 2022-07-14 | AH172: Gartly School | AI172: n | AJ172: Gartly School | AK172: 2025-06-02 | AL172: 0 | AM172: 0 | AN172: 2
AB173: 2025-07-17 | AC173: 0 | AD173: 0 | AE173: 2022-07-15 | AH173: Glass School | AI173: n | AJ173: Glass School | AK173: 2025-02-07 | AL173: 0 | AM173: 0 | AN173: 1
AB174: 2025-07-18 | AC174: 0 | AD174: 0 | AE174: 2022-07-16 | AH174: Glass School | AI174: n | AJ174: Glass School | AK174: 2025-06-02 | AL174: 0 | AM174: 0 | AN174: 2
AB175: 2025-07-19 | AC175: 0 | AD175: 0 | AE175: 2022-07-17 | AH175: Glenbervie School | AI175: n | AJ175: Glenbervie School | AK175: 2025-02-07 | AL175: 0 | AM175: 0 | AN175: 1
AB176: 2025-07-20 | AC176: 0 | AD176: 0 | AE176: 2022-07-18 | AH176: Glenbervie School | AI176: n | AJ176: Glenbervie School | AK176: 2025-06-02 | AL176: 0 | AM176: 0 | AN176: 2
AB177: 2025-07-21 | AC177: 0 | AD177: 0 | AE177: 2022-07-19 | AH177: Gordon Schools (The) | AI177: n | AJ177: Gordon Schools (The) | AK177: 2025-02-07 | AL177: 0 | AM177: 0 | AN177: 1
AB178: 2025-07-22 | AC178: 0 | AD178: 0 | AE178: 2022-07-20 | AH178: Gordon Schools (The) | AI178: n | AJ178: Gordon Schools (The) | AK178: 2025-06-02 | AL178: 0 | AM178: 0 | AN178: 2
AB179: 2025-07-23 | AC179: 0 | AD179: 0 | AE179: 2022-07-21 | AH179: GordonSchool | AI179: n | AJ179: GordonSchool | AK179: 2025-02-07 | AL179: 0 | AM179: 0 | AN179: 1
AB180: 2025-07-24 | AC180: 0 | AD180: 0 | AE180: 2022-07-22 | AH180: GordonSchool | AI180: n | AJ180: GordonSchool | AK180: 2025-06-02 | AL180: 0 | AM180: 0 | AN180: 2
AB181: 2025-07-25 | AC181: 0 | AD181: 0 | AE181: 2022-07-23 | AH181: Gourdon School | AI181: n | AJ181: Gourdon School | AK181: 2025-02-07 | AL181: 0 | AM181: 0 | AN181: 1
AB182: 2025-07-26 | AC182: 0 | AD182: 0 | AE182: 2022-07-24 | AH182: Gourdon School | AI182: n | AJ182: Gourdon School | AK182: 2025-06-02 | AL182: 0 | AM182: 0 | AN182: 2
AB183: 2025-07-27 | AC183: 0 | AD183: 0 | AE183: 2022-07-25 | AH183: Hatton Fintray School | AI183: n | AJ183: Hatton Fintray School | AK183: 2025-02-07 | AL183: 0 | AM183: 0 | AN183: 1
AB184: 2025-07-28 | AC184: 0 | AD184: 0 | AE184: 2022-07-26 | AH184: Hatton Fintray School | AI184: n | AJ184: Hatton Fintray School | AK184: 2025-06-02 | AL184: 0 | AM184: 0 | AN184: 2
AB185: 2025-07-29 | AC185: 0 | AD185: 0 | AE185: 2022-07-27 | AH185: Hatton School, Cruden | AI185: n | AJ185: Hatton School, Cruden | AK185: 2025-02-07 | AL185: 0 | AM185: 0 | AN185: 1
AB186: 2025-07-30 | AC186: 0 | AD186: 0 | AE186: 2022-07-28 | AH186: Hatton School, Cruden | AI186: n | AJ186: Hatton School, Cruden | AK186: 2025-06-02 | AL186: 0 | AM186: 0 | AN186: 2
AB187: 2025-07-31 | AC187: 0 | AD187: 0 | AE187: 2022-07-29 | AH187: Hill of Banchory School | AI187: n | AJ187: Hill of Banchory School | AK187: 2025-02-07 | AL187: 0 | AM187: 0 | AN187: 1
AB188: 2025-08-01 | AC188: 0 | AD188: 0 | AE188: 2022-07-30 | AH188: Hill of Banchory School | AI188: n | AJ188: Hill of Banchory School | AK188: 2025-06-02 | AL188: 0 | AM188: 0 | AN188: 2
AB189: 2025-08-02 | AC189: 0 | AD189: 0 | AE189: 2022-07-31 | AH189: Hillside School | AI189: n | AJ189: Hillside School | AK189: 2025-02-06 | AL189: 0 | AM189: 0 | AN189: 1
AB190: 2025-08-03 | AC190: 0 | AD190: 0 | AE190: 2022-08-01 | AH190: Hillside School | AI190: n | AJ190: Hillside School | AK190: 2025-02-07 | AL190: 0 | AM190: 0 | AN190: 2
AB191: 2025-08-04 | AC191: 0 | AD191: 0 | AE191: 2022-08-02 | AH191: Insch School | AI191: n | AJ191: Insch School | AK191: 2025-02-07 | AL191: 0 | AM191: 0 | AN191: 1
AB192: 2025-08-05 | AC192: 0 | AD192: 0 | AE192: 2022-08-03 | AH192: Insch School | AI192: =IF(AH192 = $U$7,"y","n") -> n | AJ192: Insch School | AK192: 2025-06-02 | AL192: 0 | AM192: =VALUE(AL192) -> 0 | AN192: 2
AB193: 2025-08-06 | AC193: 0 | AD193: 0 | AE193: 2022-08-04 | AH193: Inverallochy School | AI193: n | AJ193: Inverallochy School | AK193: 2025-02-07 | AL193: 0 | AM193: 0 | AN193: 1
AB194: 2025-08-07 | AC194: 0 | AD194: 0 | AE194: 2022-08-05 | AH194: Inverallochy School | AI194: n | AJ194: Inverallochy School | AK194: 2025-06-02 | AL194: 0 | AM194: 0 | AN194: 2
AB195: 2025-08-08 | AC195: 0 | AD195: 0 | AE195: 2022-08-06 | AH195: Inverurie Academy | AI195: n | AJ195: Inverurie Academy | AK195: 2025-02-07 | AL195: 0 | AM195: 0 | AN195: 1
AB196: 2025-08-09 | AC196: 0 | AD196: 0 | AE196: 2022-08-07 | AH196: Inverurie Academy | AI196: n | AJ196: Inverurie Academy | AK196: 2025-06-02 | AL196: 0 | AM196: 0 | AN196: 2
AB197: 2025-08-10 | AC197: 0 | AD197: 0 | AE197: 2022-08-08 | AH197: Johnshaven School | AI197: n | AJ197: Johnshaven School | AK197: 2025-02-07 | AL197: 0 | AM197: 0 | AN197: 1
AB198: 2025-08-11 | AC198: 0 | AD198: 0 | AE198: 2022-08-09 | AH198: Johnshaven School | AI198: n | AJ198: Johnshaven School | AK198: 2025-06-02 | AL198: 0 | AM198: 0 | AN198: 2
AB199: 2025-08-12 | AC199: 0 | AD199: 0 | AE199: 2022-08-10 | AH199: Keig School | AI199: n | AJ199: Keig School | AK199: 2025-02-07 | AL199: 0 | AM199: 0 | AN199: 1
AB200: 2025-08-13 | AC200: 0 | AD200: 0 | AE200: 2022-08-11 | AH200: Keig School | AI200: n | AJ200: Keig School | AK200: 2025-06-02 | AL200: 0 | AM200: 0 | AN200: 2
AB201: 2025-08-14 | AC201: 0 | AD201: 0 | AE201: 2022-08-12 | AH201: Keithhall School | AI201: n | AJ201: Keithhall School | AK201: 2025-02-07 | AL201: 0 | AM201: 0 | AN201: 1
AB202: 2025-08-15 | AC202: 0 | AD202: 0 | AE202: 2022-08-13 | AH202: Keithhall School | AI202: n | AJ202: Keithhall School | AK202: 2025-06-02 | AL202: 0 | AM202: 0 | AN202: 2
AB203: 2025-08-16 | AC203: 0 | AD203: =VALUE(AC203) -> 0 | AE203: 2022-08-14 | AH203: Kellands School | AI203: n | AJ203: Kellands School | AK203: 2025-02-07 | AL203: 0 | AM203: 0 | AN203: 1
AB204: 2025-08-17 | AD204: =SUM(AD38:AD203) -> 124 | AH204: Kellands School | AI204: n | AJ204: Kellands School | AK204: 2025-06-02 | AL204: 0 | AM204: =VALUE(AL204) -> 0 | AN204: 2
AH205: Kemnay Academy | AI205: n | AJ205: Kemnay Academy | AK205: 2025-02-07 | AL205: 0 | AM205: 0 | AN205: 1
AH206: Kemnay Academy | AI206: n | AJ206: Kemnay Academy | AK206: 2025-06-02 | AL206: 0 | AM206: 0 | AN206: 2
... 179 more rows

Sheet calendarteach (hidden)
A1: Calendar for | B1: 2024/25 | L1: 2 Occasional days takes it to 195 (should always be 195)
B2: Date | C2: Day | D2: Holidays/non contractual | F2: working days | G2: Non working days | J2: day | K2: month | L2: total days in month
A3: =B3 -> 45523 | B3: 2024-08-19 | C3: Monday | E3: August | F3: 1 | J3: 19 | K3: 1 | L3: 31
A4: 45524 | B4: 2024-08-20 | C4: Tuesday | E4: August | F4: 1 | J4: 20 | K4: 1 | L4: 31
A5: 45525 | B5: 2024-08-21 | C5: Wednesday | E5: August | F5: 1 | J5: 21 | K5: 1 | L5: 31
A6: 45526 | B6: 2024-08-22 | C6: Thursday | E6: August | F6: 1 | J6: 22 | K6: 1 | L6: 31
A7: 45527 | B7: 2024-08-23 | C7: Friday | E7: August | F7: 1 | J7: 23 | K7: 1 | L7: 31
A8: 45528 | B8: 2024-08-24 | C8: Saturday | E8: August | G8: 1 | J8: 24 | K8: 1 | L8: 31
A9: 45529 | B9: 2024-08-25 | C9: Sunday | E9: August | G9: 1 | J9: 25 | K9: 1 | L9: 31
A10: 45530 | B10: 2024-08-26 | C10: Monday | E10: August | F10: 1 | J10: 26 | K10: 1 | L10: 31
A11: 45531 | B11: 2024-08-27 | C11: Tuesday | E11: August | F11: 1 | J11: 27 | K11: 1 | L11: 31
A12: 45532 | B12: 2024-08-28 | C12: Wednesday | E12: August | F12: 1 | J12: 28 | K12: 1 | L12: 31
A13: 45533 | B13: 2024-08-29 | C13: Thursday | E13: August | F13: 1 | J13: 29 | K13: 1 | L13: 31
A14: 45534 | B14: 2024-08-30 | C14: Friday | E14: August | F14: 1 | J14: 30 | K14: 1 | L14: 31
A15: 45535 | B15: 2024-08-31 | C15: Saturday | E15: August | G15: 1 | J15: 31 | K15: 1 | L15: 31
A16: 45536 | B16: 2024-09-01 | C16: Sunday | E16: September | G16: 1 | J16: 1 | K16: 2 | L16: 30
A17: 45537 | B17: 2024-09-02 | C17: Monday | E17: September | F17: 1 | J17: 2 | K17: 2 | L17: 30
A18: 45538 | B18: 2024-09-03 | C18: Tuesday | E18: September | F18: 1 | J18: 3 | K18: 2 | L18: 30
A19: 45539 | B19: 2024-09-04 | C19: Wednesday | E19: September | F19: 1 | J19: 4 | K19: 2 | L19: 30
A20: 45540 | B20: 2024-09-05 | C20: Thursday | E20: September | F20: 1 | J20: 5 | K20: 2 | L20: 30
A21: 45541 | B21: 2024-09-06 | C21: Friday | E21: September | F21: 1 | J21: 6 | K21: 2 | L21: 30
A22: 45542 | B22: 2024-09-07 | C22: Saturday | E22: September | G22: 1 | J22: 7 | K22: 2 | L22: 30
A23: 45543 | B23: 2024-09-08 | C23: Sunday | E23: September | G23: 1 | J23: 8 | K23: 2 | L23: 30
A24: 45544 | B24: 2024-09-09 | C24: Monday | E24: September | F24: 1 | J24: 9 | K24: 2 | L24: 30
A25: 45545 | B25: 2024-09-10 | C25: Tuesday | E25: September | F25: 1 | J25: 10 | K25: 2 | L25: 30
A26: 45546 | B26: 2024-09-11 | C26: Wednesday | E26: September | F26: 1 | J26: 11 | K26: 2 | L26: 30
A27: 45547 | B27: 2024-09-12 | C27: Thursday | E27: September | F27: 1 | J27: 12 | K27: 2 | L27: 30
A28: 45548 | B28: 2024-09-13 | C28: Friday | E28: September | F28: 1 | J28: 13 | K28: 2 | L28: 30
A29: 45549 | B29: 2024-09-14 | C29: Saturday | E29: September | G29: 1 | J29: 14 | K29: 2 | L29: 30
A30: 45550 | B30: 2024-09-15 | C30: Sunday | E30: September | G30: 1 | J30: 15 | K30: 2 | L30: 30
A31: 45551 | B31: 2024-09-16 | C31: Monday | E31: September | F31: 1 | J31: 16 | K31: 2 | L31: 30
A32: 45552 | B32: 2024-09-17 | C32: Tuesday | E32: September | F32: 1 | J32: 17 | K32: 2 | L32: 30
A33: 45553 | B33: 2024-09-18 | C33: Wednesday | E33: September | F33: 1 | J33: 18 | K33: 2 | L33: 30
A34: 45554 | B34: 2024-09-19 | C34: Thursday | E34: September | F34: 1 | J34: 19 | K34: 2 | L34: 30
A35: 45555 | B35: 2024-09-20 | C35: Friday | E35: September | F35: 1 | J35: 20 | K35: 2 | L35: 30
A36: 45556 | B36: 2024-09-21 | C36: Saturday | E36: September | G36: 1 | J36: 21 | K36: 2 | L36: 30
A37: 45557 | B37: 2024-09-22 | C37: Sunday | E37: September | G37: 1 | J37: 22 | K37: 2 | L37: 30
A38: 45558 | B38: 2024-09-23 | C38: Monday | E38: September | F38: 1 | J38: 23 | K38: 2 | L38: 30
A39: 45559 | B39: 2024-09-24 | C39: Tuesday | E39: September | F39: 1 | J39: 24 | K39: 2 | L39: 30
A40: 45560 | B40: 2024-09-25 | C40: Wednesday | E40: September | F40: 1 | J40: 25 | K40: 2 | L40: 30
A41: 45561 | B41: 2024-09-26 | C41: Thursday | E41: September | F41: 1 | J41: 26 | K41: 2 | L41: 30
A42: 45562 | B42: 2024-09-27 | C42: Friday | E42: September | F42: 1 | J42: 27 | K42: 2 | L42: 30
A43: 45563 | B43: 2024-09-28 | C43: Saturday | E43: September | G43: 1 | J43: 28 | K43: 2 | L43: 30
A44: 45564 | B44: 2024-09-29 | C44: Sunday | E44: September | G44: 1 | J44: 29 | K44: 2 | L44: 30
A45: 45565 | B45: 2024-09-30 | C45: Monday | E45: September | F45: 1 | J45: 30 | K45: 2 | L45: 30
A46: 45566 | B46: 2024-10-01 | C46: Tuesday | E46: October | F46: 1 | J46: 1 | K46: 3 | L46: 31
A47: 45567 | B47: 2024-10-02 | C47: Wednesday | E47: October | F47: 1 | J47: 2 | K47: 3 | L47: 31
A48: 45568 | B48: 2024-10-03 | C48: Thursday | E48: October | F48: 1 | J48: 3 | K48: 3 | L48: 31
A49: 45569 | B49: 2024-10-04 | C49: Friday | E49: October | F49: 1 | J49: 4 | K49: 3 | L49: 31
A50: 45570 | B50: 2024-10-05 | C50: Saturday | E50: October | G50: 1 | J50: 5 | K50: 3 | L50: 31
A51: 45571 | B51: 2024-10-06 | C51: Sunday | E51: October | G51: 1 | J51: 6 | K51: 3 | L51: 31
A52: 45572 | B52: 2024-10-07 | C52: Monday | E52: October | F52: 1 | J52: 7 | K52: 3 | L52: 31
A53: 45573 | B53: 2024-10-08 | C53: Tuesday | E53: October | F53: 1 | J53: 8 | K53: 3 | L53: 31
A54: 45574 | B54: 2024-10-09 | C54: Wednesday | E54: October | F54: 1 | J54: 9 | K54: 3 | L54: 31
A55: 45575 | B55: 2024-10-10 | C55: Thursday | E55: October | F55: 1 | J55: 10 | K55: 3 | L55: 31
A56: 45576 | B56: 2024-10-11 | C56: Friday | E56: October | F56: 1 | J56: 11 | K56: 3 | L56: 31
A57: 45577 | B57: 2024-10-12 | C57: Saturday | E57: October | G57: 1 | J57: 12 | K57: 3 | L57: 31
A58: 45578 | B58: 2024-10-13 | C58: Sunday | E58: October | G58: 1 | J58: 13 | K58: 3 | L58: 31
A59: 45579 | B59: 2024-10-14 | C59: Monday | D59: Hol | E59: October | G59: 1 | J59: 14 | K59: 3 | L59: 31
A60: 45580 | B60: 2024-10-15 | C60: Tuesday | D60: Hol | E60: October | G60: 1 | J60: 15 | K60: 3 | L60: 31
A61: 45581 | B61: 2024-10-16 | C61: Wednesday | D61: Hol | E61: October | G61: 1 | J61: 16 | K61: 3 | L61: 31
A62: 45582 | B62: 2024-10-17 | C62: Thursday | D62: Hol | E62: October | G62: 1 | J62: 17 | K62: 3 | L62: 31
A63: 45583 | B63: 2024-10-18 | C63: Friday | D63: Hol | E63: October | G63: 1 | J63: 18 | K63: 3 | L63: 31
A64: 45584 | B64: 2024-10-19 | C64: Saturday | E64: October | G64: 1 | J64: 19 | K64: 3 | L64: 31
A65: 45585 | B65: 2024-10-20 | C65: Sunday | E65: October | G65: 1 | J65: 20 | K65: 3 | L65: 31
A66: 45586 | B66: 2024-10-21 | C66: Monday | D66: Hol | E66: October | G66: 1 | J66: 21 | K66: 3 | L66: 31
A67: =B67 -> 45587 | B67: 2024-10-22 | C67: Tuesday | D67: Hol | E67: October | G67: 1 | J67: 22 | K67: 3 | L67: 31
A68: 45588 | B68: 2024-10-23 | C68: Wednesday | D68: NC | E68: October | G68: 1 | J68: 23 | K68: 3 | L68: 31
A69: 45589 | B69: 2024-10-24 | C69: Thursday | D69: NC | E69: October | G69: 1 | J69: 24 | K69: 3 | L69: 31
A70: 45590 | B70: 2024-10-25 | C70: Friday | D70: NC | E70: October | G70: 1 | J70: 25 | K70: 3 | L70: 31
A71: 45591 | B71: 2024-10-26 | C71: Saturday | E71: October | G71: 1 | J71: 26 | K71: 3 | L71: 31
A72: 45592 | B72: 2024-10-27 | C72: Sunday | E72: October | G72: 1 | J72: 27 | K72: 3 | L72: 31
A73: 45593 | B73: 2024-10-28 | C73: Monday | E73: October | F73: 1 | J73: 28 | K73: 3 | L73: 31
A74: 45594 | B74: 2024-10-29 | C74: Tuesday | E74: October | F74: 1 | J74: 29 | K74: 3 | L74: 31
A75: 45595 | B75: 2024-10-30 | C75: Wednesday | E75: October | F75: 1 | J75: 30 | K75: 3 | L75: 31
A76: 45596 | B76: 2024-10-31 | C76: Thursday | E76: October | F76: 1 | J76: 31 | K76: 3 | L76: 31
A77: 45597 | B77: 2024-11-01 | C77: Friday | E77: November | F77: 1 | J77: 1 | K77: 4 | L77: 30
A78: 45598 | B78: 2024-11-02 | C78: Saturday | E78: November | G78: 1 | J78: 2 | K78: 4 | L78: 30
A79: 45599 | B79: 2024-11-03 | C79: Sunday | E79: November | G79: 1 | J79: 3 | K79: 4 | L79: 30
A80: 45600 | B80: 2024-11-04 | C80: Monday | E80: November | F80: 1 | J80: 4 | K80: 4 | L80: 30
A81: 45601 | B81: 2024-11-05 | C81: Tuesday | E81: November | F81: 1 | J81: 5 | K81: 4 | L81: 30
A82: 45602 | B82: 2024-11-06 | C82: Wednesday | E82: November | F82: 1 | J82: 6 | K82: 4 | L82: 30
A83: 45603 | B83: 2024-11-07 | C83: Thursday | E83: November | F83: 1 | J83: 7 | K83: 4 | L83: 30
A84: 45604 | B84: 2024-11-08 | C84: Friday | E84: November | F84: 1 | J84: 8 | K84: 4 | L84: 30
A85: 45605 | B85: 2024-11-09 | C85: Saturday | E85: November | G85: 1 | J85: 9 | K85: 4 | L85: 30
A86: 45606 | B86: 2024-11-10 | C86: Sunday | E86: November | G86: 1 | J86: 10 | K86: 4 | L86: 30
A87: 45607 | B87: 2024-11-11 | C87: Monday | E87: November | F87: 1 | J87: 11 | K87: 4 | L87: 30
A88: 45608 | B88: 2024-11-12 | C88: Tuesday | E88: November | F88: 1 | J88: 12 | K88: 4 | L88: 30
A89: 45609 | B89: 2024-11-13 | C89: Wednesday | E89: November | F89: 1 | J89: 13 | K89: 4 | L89: 30
A90: 45610 | B90: 2024-11-14 | C90: Thursday | E90: November | F90: 1 | J90: 14 | K90: 4 | L90: 30
A91: 45611 | B91: 2024-11-15 | C91: Friday | E91: November | F91: 1 | J91: 15 | K91: 4 | L91: 30
A92: 45612 | B92: 2024-11-16 | C92: Saturday | E92: November | G92: 1 | J92: 16 | K92: 4 | L92: 30
A93: 45613 | B93: 2024-11-17 | C93: Sunday | E93: November | G93: 1 | J93: 17 | K93: 4 | L93: 30
A94: 45614 | B94: 2024-11-18 | C94: Monday | E94: November | F94: 1 | J94: 18 | K94: 4 | L94: 30
A95: 45615 | B95: 2024-11-19 | C95: Tuesday | E95: November | F95: 1 | J95: 19 | K95: 4 | L95: 30
A96: 45616 | B96: 2024-11-20 | C96: Wednesday | E96: November | F96: 1 | J96: 20 | K96: 4 | L96: 30
A97: 45617 | B97: 2024-11-21 | C97: Thursday | E97: November | F97: 1 | J97: 21 | K97: 4 | L97: 30
A98: 45618 | B98: 2024-11-22 | C98: Friday | E98: November | F98: 1 | J98: 22 | K98: 4 | L98: 30
A99: 45619 | B99: 2024-11-23 | C99: Saturday | E99: November | G99: 1 | J99: 23 | K99: 4 | L99: 30
A100: 45620 | B100: 2024-11-24 | C100: Sunday | E100: November | G100: 1 | J100: 24 | K100: 4 | L100: 30
A101: 45621 | B101: 2024-11-25 | C101: Monday | E101: November | F101: 1 | J101: 25 | K101: 4 | L101: 30
A102: 45622 | B102: 2024-11-26 | C102: Tuesday | E102: November | F102: 1 | J102: 26 | K102: 4 | L102: 30
A103: 45623 | B103: 2024-11-27 | C103: Wednesday | E103: November | F103: 1 | J103: 27 | K103: 4 | L103: 30
A104: 45624 | B104: 2024-11-28 | C104: Thursday | E104: November | F104: 1 | J104: 28 | K104: 4 | L104: 30
A105: 45625 | B105: 2024-11-29 | C105: Friday | E105: November | F105: 1 | J105: 29 | K105: 4 | L105: 30
A106: 45626 | B106: 2024-11-30 | C106: Saturday | E106: November | G106: 1 | J106: 30 | K106: 4 | L106: 30
A107: 45627 | B107: 2024-12-01 | C107: Sunday | E107: December | G107: 1 | J107: 1 | K107: 5 | L107: 31
A108: 45628 | B108: 2024-12-02 | C108: Monday | E108: December | F108: 1 | J108: 2 | K108: 5 | L108: 31
A109: 45629 | B109: 2024-12-03 | C109: Tuesday | E109: December | F109: 1 | J109: 3 | K109: 5 | L109: 31
A110: 45630 | B110: 2024-12-04 | C110: Wednesday | E110: December | F110: 1 | J110: 4 | K110: 5 | L110: 31
A111: 45631 | B111: 2024-12-05 | C111: Thursday | E111: December | F111: 1 | J111: 5 | K111: 5 | L111: 31
A112: 45632 | B112: 2024-12-06 | C112: Friday | E112: December | F112: 1 | J112: 6 | K112: 5 | L112: 31
A113: 45633 | B113: 2024-12-07 | C113: Saturday | E113: December | G113: 1 | J113: 7 | K113: 5 | L113: 31
A114: 45634 | B114: 2024-12-08 | C114: Sunday | E114: December | G114: 1 | J114: 8 | K114: 5 | L114: 31
A115: 45635 | B115: 2024-12-09 | C115: Monday | E115: December | F115: 1 | J115: 9 | K115: 5 | L115: 31
A116: 45636 | B116: 2024-12-10 | C116: Tuesday | E116: December | F116: 1 | J116: 10 | K116: 5 | L116: 31
A117: 45637 | B117: 2024-12-11 | C117: Wednesday | E117: December | F117: 1 | J117: 11 | K117: 5 | L117: 31
A118: 45638 | B118: 2024-12-12 | C118: Thursday | E118: December | F118: 1 | J118: 12 | K118: 5 | L118: 31
A119: 45639 | B119: 2024-12-13 | C119: Friday | E119: December | F119: 1 | J119: 13 | K119: 5 | L119: 31
A120: 45640 | B120: 2024-12-14 | C120: Saturday | E120: December | G120: 1 | J120: 14 | K120: 5 | L120: 31
A121: 45641 | B121: 2024-12-15 | C121: Sunday | E121: December | G121: 1 | J121: 15 | K121: 5 | L121: 31
A122: 45642 | B122: 2024-12-16 | C122: Monday | E122: December | F122: 1 | J122: 16 | K122: 5 | L122: 31
A123: 45643 | B123: 2024-12-17 | C123: Tuesday | E123: December | F123: 1 | J123: 17 | K123: 5 | L123: 31
A124: 45644 | B124: 2024-12-18 | C124: Wednesday | E124: December | F124: 1 | J124: 18 | K124: 5 | L124: 31
A125: 45645 | B125: 2024-12-19 | C125: Thursday | E125: December | F125: 1 | J125: 19 | K125: 5 | L125: 31
A126: 45646 | B126: 2024-12-20 | C126: Friday | E126: December | F126: 1 | J126: 20 | K126: 5 | L126: 31
A127: 45647 | B127: 2024-12-21 | C127: Saturday | E127: December | G127: 1 | J127: 21 | K127: 5 | L127: 31
A128: 45648 | B128: 2024-12-22 | C128: Sunday | E128: December | G128: 1 | J128: 22 | K128: 5 | L128: 31
A129: 45649 | B129: 2024-12-23 | C129: Monday | D129: Hol | E129: December | G129: 1 | J129: 23 | K129: 5 | L129: 31
A130: 45650 | B130: 2024-12-24 | C130: Tuesday | D130: Hol | E130: December | G130: 1 | J130: 24 | K130: 5 | L130: 31
A131: =B131 -> 45651 | B131: 2024-12-25 | C131: Wednesday | D131: Hol | E131: December | G131: 1 | J131: 25 | K131: 5 | L131: 31
A132: 45652 | B132: 2024-12-26 | C132: Thursday | D132: Hol | E132: December | G132: 1 | J132: 26 | K132: 5 | L132: 31
A133: 45653 | B133: 2024-12-27 | C133: Friday | D133: Hol | E133: December | G133: 1 | J133: 27 | K133: 5 | L133: 31
A134: 45654 | B134: 2024-12-28 | C134: Saturday | E134: December | G134: 1 | J134: 28 | K134: 5 | L134: 31
A135: 45655 | B135: 2024-12-29 | C135: Sunday | E135: December | G135: 1 | J135: 29 | K135: 5 | L135: 31
A136: 45656 | B136: 2024-12-30 | C136: Monday | D136: Hol | E136: December | G136: 1 | J136: 30 | K136: 5 | L136: 31
A137: 45657 | B137: 2024-12-31 | C137: Tuesday | D137: Hol | E137: December | G137: 1 | J137: 31 | K137: 5 | L137: 31
A138: 45658 | B138: 2025-01-01 | C138: Wednesday | D138: NC | E138: January | G138: 1 | J138: 1 | K138: 6 | L138: 31
A139: 45659 | B139: 2025-01-02 | C139: Thursday | D139: NC | E139: January | G139: 1 | J139: 2 | K139: 6 | L139: 31
A140: 45660 | B140: 2025-01-03 | C140: Friday | D140: NC | E140: January | G140: 1 | J140: 3 | K140: 6 | L140: 31
A141: 45661 | B141: 2025-01-04 | C141: Saturday | E141: January | G141: 1 | J141: 4 | K141: 6 | L141: 31
A142: 45662 | B142: 2025-01-05 | C142: Sunday | E142: January | G142: 1 | J142: 5 | K142: 6 | L142: 31
A143: 45663 | B143: 2025-01-06 | C143: Monday | E143: January | F143: 1 | J143: 6 | K143: 6 | L143: 31
A144: 45664 | B144: 2025-01-07 | C144: Tuesday | E144: January | F144: 1 | J144: 7 | K144: 6 | L144: 31
A145: 45665 | B145: 2025-01-08 | C145: Wednesday | E145: January | F145: 1 | J145: 8 | K145: 6 | L145: 31
A146: 45666 | B146: 2025-01-09 | C146: Thursday | E146: January | F146: 1 | J146: 9 | K146: 6 | L146: 31
A147: 45667 | B147: 2025-01-10 | C147: Friday | E147: January | F147: 1 | J147: 10 | K147: 6 | L147: 31
A148: 45668 | B148: 2025-01-11 | C148: Saturday | E148: January | G148: 1 | J148: 11 | K148: 6 | L148: 31
A149: 45669 | B149: 2025-01-12 | C149: Sunday | E149: January | G149: 1 | J149: 12 | K149: 6 | L149: 31
A150: 45670 | B150: 2025-01-13 | C150: Monday | E150: January | F150: 1 | J150: 13 | K150: 6 | L150: 31
A151: 45671 | B151: 2025-01-14 | C151: Tuesday | E151: January | F151: 1 | J151: 14 | K151: 6 | L151: 31
A152: 45672 | B152: 2025-01-15 | C152: Wednesday | E152: January | F152: 1 | J152: 15 | K152: 6 | L152: 31
A153: 45673 | B153: 2025-01-16 | C153: Thursday | E153: January | F153: 1 | J153: 16 | K153: 6 | L153: 31
A154: 45674 | B154: 2025-01-17 | C154: Friday | E154: January | F154: 1 | J154: 17 | K154: 6 | L154: 31
A155: 45675 | B155: 2025-01-18 | C155: Saturday | E155: January | G155: 1 | J155: 18 | K155: 6 | L155: 31
A156: 45676 | B156: 2025-01-19 | C156: Sunday | E156: January | G156: 1 | J156: 19 | K156: 6 | L156: 31
A157: 45677 | B157: 2025-01-20 | C157: Monday | E157: January | F157: 1 | J157: 20 | K157: 6 | L157: 31
A158: 45678 | B158: 2025-01-21 | C158: Tuesday | E158: January | F158: 1 | J158: 21 | K158: 6 | L158: 31
A159: 45679 | B159: 2025-01-22 | C159: Wednesday | E159: January | F159: 1 | J159: 22 | K159: 6 | L159: 31
A160: 45680 | B160: 2025-01-23 | C160: Thursday | E160: January | F160: 1 | J160: 23 | K160: 6 | L160: 31
A161: 45681 | B161: 2025-01-24 | C161: Friday | E161: January | F161: 1 | J161: 24 | K161: 6 | L161: 31
A162: 45682 | B162: 2025-01-25 | C162: Saturday | E162: January | G162: 1 | J162: 25 | K162: 6 | L162: 31
A163: 45683 | B163: 2025-01-26 | C163: Sunday | E163: January | G163: 1 | J163: 26 | K163: 6 | L163: 31
A164: 45684 | B164: 2025-01-27 | C164: Monday | E164: January | F164: 1 | J164: 27 | K164: 6 | L164: 31
A165: 45685 | B165: 2025-01-28 | C165: Tuesday | E165: January | F165: 1 | J165: 28 | K165: 6 | L165: 31
A166: 45686 | B166: 2025-01-29 | C166: Wednesday | E166: January | F166: 1 | J166: 29 | K166: 6 | L166: 31
A167: 45687 | B167: 2025-01-30 | C167: Thursday | E167: January | F167: 1 | J167: 30 | K167: 6 | L167: 31
A168: 45688 | B168: 2025-01-31 | C168: Friday | E168: January | F168: 1 | J168: 31 | K168: 6 | L168: 31
A169: 45689 | B169: 2025-02-01 | C169: Saturday | E169: February | G169: 1 | J169: 1 | K169: 7 | L169: 28
A170: 45690 | B170: 2025-02-02 | C170: Sunday | E170: February | G170: 1 | J170: 2 | K170: 7 | L170: 28
A171: 45691 | B171: 2025-02-03 | C171: Monday | E171: February | F171: 1 | J171: 3 | K171: 7 | L171: 28
A172: 45692 | B172: 2025-02-04 | C172: Tuesday | E172: February | F172: 1 | J172: 4 | K172: 7 | L172: 28
A173: 45693 | B173: 2025-02-05 | C173: Wednesday | E173: February | F173: 1 | J173: 5 | K173: 7 | L173: 28
A174: 45694 | B174: 2025-02-06 | C174: Thursday | E174: February | F174: 1 | J174: 6 | K174: 7 | L174: 28
A175: 45695 | B175: 2025-02-07 | C175: Friday | E175: February | F175: 1 | J175: 7 | K175: 7 | L175: 28
A176: 45696 | B176: 2025-02-08 | C176: Saturday | E176: February | G176: 1 | J176: 8 | K176: 7 | L176: 28
A177: 45697 | B177: 2025-02-09 | C177: Sunday | E177: February | G177: 1 | J177: 9 | K177: 7 | L177: 28
A178: 45698 | B178: 2025-02-10 | C178: Monday | D178: NC | E178: February | G178: 1 | J178: 10 | K178: 7 | L178: 28
A179: 45699 | B179: 2025-02-11 | C179: Tuesday | E179: February | F179: 1 | J179: 11 | K179: 7 | L179: 28
A180: 45700 | B180: 2025-02-12 | C180: Wednesday | E180: February | F180: 1 | J180: 12 | K180: 7 | L180: 28
A181: 45701 | B181: 2025-02-13 | C181: Thursday | E181: February | F181: 1 | J181: 13 | K181: 7 | L181: 28
A182: 45702 | B182: 2025-02-14 | C182: Friday | E182: February | F182: 1 | J182: 14 | K182: 7 | L182: 28
A183: 45703 | B183: 2025-02-15 | C183: Saturday | E183: February | G183: 1 | J183: 15 | K183: 7 | L183: 28
A184: 45704 | B184: 2025-02-16 | C184: Sunday | E184: February | G184: 1 | J184: 16 | K184: 7 | L184: 28
A185: 45705 | B185: 2025-02-17 | C185: Monday | E185: February | F185: 1 | J185: 17 | K185: 7 | L185: 28
A186: 45706 | B186: 2025-02-18 | C186: Tuesday | E186: February | F186: 1 | J186: 18 | K186: 7 | L186: 28
A187: 45707 | B187: 2025-02-19 | C187: Wednesday | E187: February | F187: 1 | J187: 19 | K187: 7 | L187: 28
A188: 45708 | B188: 2025-02-20 | C188: Thursday | E188: February | F188: 1 | J188: 20 | K188: 7 | L188: 28
A189: 45709 | B189: 2025-02-21 | C189: Friday | E189: February | F189: 1 | J189: 21 | K189: 7 | L189: 28
A190: 45710 | B190: 2025-02-22 | C190: Saturday | E190: February | G190: 1 | J190: 22 | K190: 7 | L190: 28
A191: 45711 | B191: 2025-02-23 | C191: Sunday | E191: February | G191: 1 | J191: 23 | K191: 7 | L191: 28
A192: 45712 | B192: 2025-02-24 | C192: Monday | E192: February | F192: 1 | J192: 24 | K192: 7 | L192: 28
A193: 45713 | B193: 2025-02-25 | C193: Tuesday | E193: February | F193: 1 | J193: 25 | K193: 7 | L193: 28
A194: 45714 | B194: 2025-02-26 | C194: Wednesday | E194: February | F194: 1 | J194: 26 | K194: 7 | L194: 28
A195: =B195 -> 45715 | B195: 2025-02-27 | C195: Thursday | E195: February | F195: 1 | J195: 27 | K195: 7 | L195: 28
A196: 45716 | B196: 2025-02-28 | C196: Friday | E196: February | F196: 1 | J196: 28 | K196: 7 | L196: 28
A197: 45717 | B197: 2025-03-01 | C197: Saturday | E197: March | G197: 1 | J197: 1 | K197: 8 | L197: 31
A198: 45718 | B198: 2025-03-02 | C198: Sunday | E198: March | G198: 1 | J198: 2 | K198: 8 | L198: 31
A199: 45719 | B199: 2025-03-03 | C199: Monday | E199: March | F199: 1 | J199: 3 | K199: 8 | L199: 31
A200: 45720 | B200: 2025-03-04 | C200: Tuesday | E200: March | F200: 1 | J200: 4 | K200: 8 | L200: 31
... 168 more rows

Sheet no working days 2024-25 (hidden)
A1: Calendar for | B1: 2024/25
B2: Date | C2: Day | D2: Holidays/non contractual | F2: working days | G2: Non working days
A3: 2024-08-24 | B3: 2024-08-24 | C3: Saturday | E3: August | G3: 1
A4: 2024-08-25 | B4: 2024-08-25 | C4: Sunday | E4: August | G4: 1
A5: 2024-08-31 | B5: 2024-08-31 | C5: Saturday | E5: August | G5: 1
A6: 2024-09-01 | B6: 2024-09-01 | C6: Sunday | E6: September | G6: 1
A7: 2024-09-07 | B7: 2024-09-07 | C7: Saturday | E7: September | G7: 1
A8: 2024-09-08 | B8: 2024-09-08 | C8: Sunday | E8: September | G8: 1
A9: 2024-09-14 | B9: 2024-09-14 | C9: Saturday | E9: September | G9: 1
A10: 2024-09-15 | B10: 2024-09-15 | C10: Sunday | E10: September | G10: 1
A11: 2024-09-21 | B11: 2024-09-21 | C11: Saturday | E11: September | G11: 1
A12: 2024-09-22 | B12: 2024-09-22 | C12: Sunday | E12: September | G12: 1
A13: 2024-09-28 | B13: 2024-09-28 | C13: Saturday | E13: September | G13: 1
A14: 2024-09-29 | B14: 2024-09-29 | C14: Sunday | E14: September | G14: 1
A15: 2024-10-05 | B15: 2024-10-05 | C15: Saturday | E15: October | G15: 1
A16: 2024-10-06 | B16: 2024-10-06 | C16: Sunday | E16: October | G16: 1
A17: 2024-10-12 | B17: 2024-10-12 | C17: Saturday | E17: October | G17: 1
A18: 2024-10-13 | B18: 2024-10-13 | C18: Sunday | E18: October | G18: 1
A19: 2024-10-14 | B19: 2024-10-14 | C19: Monday | D19: Hol | E19: October | G19: 1
A20: 2024-10-15 | B20: 2024-10-15 | C20: Tuesday | D20: Hol | E20: October | G20: 1
A21: 2024-10-16 | B21: 2024-10-16 | C21: Wednesday | D21: Hol | E21: October | G21: 1
A22: 2024-10-17 | B22: 2024-10-17 | C22: Thursday | D22: Hol | E22: October | G22: 1
A23: 2024-10-18 | B23: 2024-10-18 | C23: Friday | D23: Hol | E23: October | G23: 1
A24: 2024-10-19 | B24: 2024-10-19 | C24: Saturday | E24: October | G24: 1
A25: 2024-10-20 | B25: 2024-10-20 | C25: Sunday | E25: October | G25: 1
A26: 2024-10-21 | B26: 2024-10-21 | C26: Monday | D26: Hol | E26: October | G26: 1
A27: 2024-10-22 | B27: 2024-10-22 | C27: Tuesday | D27: Hol | E27: October | G27: 1
A28: 2024-10-23 | B28: 2024-10-23 | C28: Wednesday | D28: NC | E28: October | G28: 1
A29: 2024-10-24 | B29: 2024-10-24 | C29: Thursday | D29: NC | E29: October | G29: 1
A30: 2024-10-25 | B30: 2024-10-25 | C30: Friday | D30: NC | E30: October | G30: 1
A31: 2024-10-26 | B31: 2024-10-26 | C31: Saturday | E31: October | G31: 1
A32: 2024-10-27 | B32: 2024-10-27 | C32: Sunday | E32: October | G32: 1
A33: 2024-11-02 | B33: 2024-11-02 | C33: Saturday | E33: November | G33: 1
A34: 2024-11-03 | B34: 2024-11-03 | C34: Sunday | E34: November | G34: 1
A35: 2024-11-09 | B35: 2024-11-09 | C35: Saturday | E35: November | G35: 1
A36: 2024-11-10 | B36: 2024-11-10 | C36: Sunday | E36: November | G36: 1
A37: 2024-11-16 | B37: 2024-11-16 | C37: Saturday | E37: November | G37: 1
A38: 2024-11-17 | B38: 2024-11-17 | C38: Sunday | E38: November | G38: 1
A39: 2024-11-23 | B39: 2024-11-23 | C39: Saturday | E39: November | G39: 1
A40: 2024-11-24 | B40: 2024-11-24 | C40: Sunday | E40: November | G40: 1
A41: 2024-11-30 | B41: 2024-11-30 | C41: Saturday | E41: November | G41: 1
A42: 2024-12-01 | B42: 2024-12-01 | C42: Sunday | E42: December | G42: 1
A43: 2024-12-07 | B43: 2024-12-07 | C43: Saturday | E43: December | G43: 1
A44: 2024-12-08 | B44: 2024-12-08 | C44: Sunday | E44: December | G44: 1
A45: 2024-12-14 | B45: 2024-12-14 | C45: Saturday | E45: December | G45: 1
A46: 2024-12-15 | B46: 2024-12-15 | C46: Sunday | E46: December | G46: 1
A47: 2024-12-21 | B47: 2024-12-21 | C47: Saturday | E47: December | G47: 1
A48: 2024-12-22 | B48: 2024-12-22 | C48: Sunday | E48: December | G48: 1
A49: 2024-12-23 | B49: 2024-12-23 | C49: Monday | D49: Hol | E49: December | G49: 1
A50: 2024-12-24 | B50: 2024-12-24 | C50: Tuesday | D50: Hol | E50: December | G50: 1
A51: 2024-12-25 | B51: 2024-12-25 | C51: Wednesday | D51: Hol | E51: December | G51: 1
A52: 2024-12-26 | B52: 2024-12-26 | C52: Thursday | D52: Hol | E52: December | G52: 1
A53: 2024-12-27 | B53: 2024-12-27 | C53: Friday | D53: Hol | E53: December | G53: 1
A54: 2024-12-28 | B54: 2024-12-28 | C54: Saturday | E54: December | G54: 1
A55: 2024-12-29 | B55: 2024-12-29 | C55: Sunday | E55: December | G55: 1
A56: 2024-12-30 | B56: 2024-12-30 | C56: Monday | D56: Hol | E56: December | G56: 1
A57: 2024-12-31 | B57: 2024-12-31 | C57: Tuesday | D57: Hol | E57: December | G57: 1
A58: 2025-01-01 | B58: 2025-01-01 | C58: Wednesday | D58: NC | E58: January | G58: 1
A59: 2025-01-02 | B59: 2025-01-02 | C59: Thursday | D59: NC | E59: January | G59: 1
A60: 2025-01-03 | B60: 2025-01-03 | C60: Friday | D60: NC | E60: January | G60: 1
A61: 2025-01-04 | B61: 2025-01-04 | C61: Saturday | E61: January | G61: 1
A62: 2025-01-05 | B62: 2025-01-05 | C62: Sunday | E62: January | G62: 1
A63: 2025-01-11 | B63: 2025-01-11 | C63: Saturday | E63: January | G63: 1
A64: 2025-01-12 | B64: 2025-01-12 | C64: Sunday | E64: January | G64: 1
A65: 2025-01-18 | B65: 2025-01-18 | C65: Saturday | E65: January | G65: 1
A66: 2025-01-19 | B66: 2025-01-19 | C66: Sunday | E66: January | G66: 1
A67: 2025-01-25 | B67: 2025-01-25 | C67: Saturday | E67: January | G67: 1
A68: 2025-01-26 | B68: 2025-01-26 | C68: Sunday | E68: January | G68: 1
A69: 2025-02-01 | B69: 2025-02-01 | C69: Saturday | E69: February | G69: 1
A70: 2025-02-02 | B70: 2025-02-02 | C70: Sunday | E70: February | G70: 1
A71: 2025-02-08 | B71: 2025-02-08 | C71: Saturday | E71: February | G71: 1
A72: 2025-02-09 | B72: 2025-02-09 | C72: Sunday | E72: February | G72: 1
A73: 2025-02-10 | B73: 2025-02-10 | C73: Monday | D73: NC | E73: February | G73: 1
A74: 2025-02-15 | B74: 2025-02-15 | C74: Saturday | E74: February | G74: 1
A75: 2025-02-16 | B75: 2025-02-16 | C75: Sunday | E75: February | G75: 1
A76: 2025-02-22 | B76: 2025-02-22 | C76: Saturday | E76: February | G76: 1
A77: 2025-02-23 | B77: 2025-02-23 | C77: Sunday | E77: February | G77: 1
A78: 2025-03-01 | B78: 2025-03-01 | C78: Saturday | E78: March | G78: 1
A79: 2025-03-02 | B79: 2025-03-02 | C79: Sunday | E79: March | G79: 1
A80: 2025-03-08 | B80: 2025-03-08 | C80: Saturday | E80: March | G80: 1
A81: 2025-03-09 | B81: 2025-03-09 | C81: Sunday | E81: March | G81: 1
A82: 2025-03-15 | B82: 2025-03-15 | C82: Saturday | E82: March | G82: 1
A83: 2025-03-16 | B83: 2025-03-16 | C83: Sunday | E83: March | G83: 1
A84: 2025-03-22 | B84: 2025-03-22 | C84: Saturday | E84: March | G84: 1
A85: 2025-03-23 | B85: 2025-03-23 | C85: Sunday | E85: March | G85: 1
A86: 2025-03-29 | B86: 2025-03-29 | C86: Saturday | E86: March | G86: 1
A87: 2025-03-30 | B87: 2025-03-30 | C87: Sunday | E87: March | G87: 1
A88: 2025-03-31 | B88: 2025-03-31 | C88: Monday | D88: Hol | E88: March | G88: 1
A89: 2025-04-01 | B89: 2025-04-01 | C89: Tuesday | D89: Hol | E89: April | G89: 1
A90: 2025-04-02 | B90: 2025-04-02 | C90: Wednesday | D90: Hol | E90: April | G90: 1
A91: 2025-04-03 | B91: 2025-04-03 | C91: Thursday | D91: Hol | E91: April | G91: 1
A92: 2025-04-04 | B92: 2025-04-04 | C92: Friday | D92: Hol | E92: April | G92: 1
A93: 2025-04-05 | B93: 2025-04-05 | C93: Saturday | E93: April | G93: 1
A94: 2025-04-06 | B94: 2025-04-06 | C94: Sunday | E94: April | G94: 1
A95: 2025-04-07 | B95: 2025-04-07 | C95: Monday | D95: NC | E95: April | G95: 1
A96: 2025-04-08 | B96: 2025-04-08 | C96: Tuesday | D96: NC | E96: April | G96: 1
A97: 2025-04-09 | B97: 2025-04-09 | C97: Wednesday | D97: NC | E97: April | G97: 1
A98: 2025-04-10 | B98: 2025-04-10 | C98: Thursday | D98: NC | E98: April | G98: 1
A99: 2025-04-11 | B99: 2025-04-11 | C99: Friday | D99: NC | E99: April | G99: 1
A100: 2025-04-12 | B100: 2025-04-12 | C100: Saturday | E100: April | G100: 1
A101: 2025-04-13 | B101: 2025-04-13 | C101: Sunday | E101: April | G101: 1
A102: 2025-04-18 | B102: 2025-04-18 | C102: Friday | D102: Hol | E102: April | G102: 1
A103: 2025-04-19 | B103: 2025-04-19 | C103: Saturday | E103: April | G103: 1
A104: 2025-04-20 | B104: 2025-04-20 | C104: Sunday | E104: April | G104: 1
A105: 2025-04-26 | B105: 2025-04-26 | C105: Saturday | E105: April | G105: 1
A106: 2025-04-27 | B106: 2025-04-27 | C106: Sunday | E106: April | G106: 1
A107: 2025-05-03 | B107: 2025-05-03 | C107: Saturday | E107: May | G107: 1
A108: 2025-05-04 | B108: 2025-05-04 | C108: Sunday | E108: May | G108: 1
A109: 2025-05-05 | B109: 2025-05-05 | C109: Monday | D109: NC | E109: May | G109: 1
A110: 2025-05-10 | B110: 2025-05-10 | C110: Saturday | E110: May | G110: 1
A111: 2025-05-11 | B111: 2025-05-11 | C111: Sunday | E111: May | G111: 1
A112: 2025-05-17 | B112: 2025-05-17 | C112: Saturday | E112: May | G112: 1
A113: 2025-05-18 | B113: 2025-05-18 | C113: Sunday | E113: May | G113: 1
A114: 2025-05-24 | B114: 2025-05-24 | C114: Saturday | E114: May | G114: 1
A115: 2025-05-25 | B115: 2025-05-25 | C115: Sunday | E115: May | G115: 1
A116: 2025-05-31 | B116: 2025-05-31 | C116: Saturday | E116: May | G116: 1
A117: 2025-06-01 | B117: 2025-06-01 | C117: Sunday | E117: June | G117: 1
A118: 2025-06-07 | B118: 2025-06-07 | C118: Saturday | E118: June | G118: 1
A119: 2025-06-08 | B119: 2025-06-08 | C119: Sunday | E119: June | G119: 1
A120: 2025-06-14 | B120: 2025-06-14 | C120: Saturday | E120: June | G120: 1
A121: 2025-06-15 | B121: 2025-06-15 | C121: Sunday | E121: June | G121: 1
A122: 2025-06-21 | B122: 2025-06-21 | C122: Saturday | E122: June | G122: 1
A123: 2025-06-22 | B123: 2025-06-22 | C123: Sunday | E123: June | G123: 1
A124: 2025-06-28 | B124: 2025-06-28 | C124: Saturday | E124: June | G124: 1
A125: 2025-06-29 | B125: 2025-06-29 | C125: Sunday | E125: June | G125: 1
A126: 2025-07-05 | B126: 2025-07-05 | C126: Saturday | E126: July | G126: 1
A127: 2025-07-06 | B127: 2025-07-06 | C127: Sunday | E127: July | G127: 1
A128: 2025-07-07 | B128: 2025-07-07 | C128: Monday | D128: Hol | E128: July | G128: 1
A129: 2025-07-08 | B129: 2025-07-08 | C129: Tuesday | D129: Hol | E129: July | G129: 1
A130: 2025-07-09 | B130: 2025-07-09 | C130: Wednesday | D130: Hol | E130: July | G130: 1
A131: 2025-07-10 | B131: 2025-07-10 | C131: Thursday | D131: Hol | E131: July | G131: 1
A132: 2025-07-11 | B132: 2025-07-11 | C132: Friday | D132: Hol | E132: July | G132: 1
A133: 2025-07-12 | B133: 2025-07-12 | C133: Saturday | E133: July | G133: 1
A134: 2025-07-13 | B134: 2025-07-13 | C134: Sunday | E134: July | G134: 1
A135: 2025-07-14 | B135: 2025-07-14 | C135: Monday | D135: Hol | E135: July | G135: 1
A136: 2025-07-15 | B136: 2025-07-15 | C136: Tuesday | D136: Hol | E136: July | G136: 1
A137: 2025-07-16 | B137: 2025-07-16 | C137: Wednesday | D137: Hol | E137: July | G137: 1
A138: 2025-07-17 | B138: 2025-07-17 | C138: Thursday | D138: Hol | E138: July | G138: 1
A139: 2025-07-18 | B139: 2025-07-18 | C139: Friday | D139: Hol | E139: July | G139: 1
A140: 2025-07-19 | B140: 2025-07-19 | C140: Saturday | E140: July | G140: 1
A141: 2025-07-20 | B141: 2025-07-20 | C141: Sunday | E141: July | G141: 1
A142: 2025-07-21 | B142: 2025-07-21 | C142: Monday | D142: Hol | E142: July | G142: 1
A143: 2025-07-22 | B143: 2025-07-22 | C143: Tuesday | D143: Hol | E143: July | G143: 1
A144: 2025-07-23 | B144: 2025-07-23 | C144: Wednesday | D144: Hol | E144: July | G144: 1
A145: 2025-07-24 | B145: 2025-07-24 | C145: Thursday | D145: Hol | E145: July | G145: 1
A146: 2025-07-25 | B146: 2025-07-25 | C146: Friday | D146: Hol | E146: July | G146: 1
A147: 2025-07-26 | B147: 2025-07-26 | C147: Saturday | E147: July | G147: 1
A148: 2025-07-27 | B148: 2025-07-27 | C148: Sunday | E148: July | G148: 1
A149: 2025-07-28 | B149: 2025-07-28 | C149: Monday | D149: Hol | E149: July | G149: 1
A150: 2025-07-29 | B150: 2025-07-29 | C150: Tuesday | D150: Hol | E150: July | G150: 1
A151: 2025-07-30 | B151: 2025-07-30 | C151: Wednesday | D151: Hol | E151: July | G151: 1
A152: 2025-07-31 | B152: 2025-07-31 | C152: Thursday | D152: Hol | E152: July | G152: 1
A153: 2025-08-01 | B153: 2025-08-01 | C153: Friday | D153: Hol | E153: August | G153: 1
A154: 2025-08-02 | B154: 2025-08-02 | C154: Saturday | E154: August | G154: 1
A155: 2025-08-03 | B155: 2025-08-03 | C155: Sunday | E155: August | G155: 1
A156: 2025-08-04 | B156: 2025-08-04 | C156: Monday | D156: NC | E156: August | G156: 1
A157: 2025-08-05 | B157: 2025-08-05 | C157: Tuesday | D157: NC | E157: August | G157: 1
A158: 2025-08-06 | B158: 2025-08-06 | C158: Wednesday | D158: NC | E158: August | G158: 1
A159: 2025-08-07 | B159: 2025-08-07 | C159: Thursday | D159: NC | E159: August | G159: 1
A160: 2025-08-08 | B160: 2025-08-08 | C160: Friday | D160: NC | E160: August | G160: 1
A161: 2025-08-09 | B161: 2025-08-09 | C161: Saturday | E161: August | G161: 1
A162: 2025-08-10 | B162: 2025-08-10 | C162: Sunday | E162: August | G162: 1
A163: 2025-08-11 | B163: 2025-08-11 | C163: Monday | D163: NC | E163: August | G163: 1
A164: 2025-08-12 | B164: 2025-08-12 | C164: Tuesday | D164: NC | E164: August | G164: 1
A165: 2025-08-13 | B165: 2025-08-13 | C165: Wednesday | D165: NC | E165: August | G165: 1
A166: 2025-08-14 | B166: 2025-08-14 | C166: Thursday | D166: NC | E166: August | G166: 1
A167: 2025-08-15 | B167: 2025-08-15 | C167: Friday | D167: NC | E167: August | G167: 1
A168: 2025-08-16 | B168: 2025-08-16 | C168: Saturday | E168: August | G168: 1
A169: 2025-08-17 | B169: 2025-08-17 | C169: Sunday | E169: August | G169: 1

Sheet OccHols (hidden)
B1: OCCASIONAL DAYS 2024-2025
A2: CSN | B2: NO SCHOOL | C2: Date | D2: Numeric Date | E2: Date | F2: Numeric Date | G2: Day1 | H2: Day2
A3: Banff | B3: Aberchirder School | C3: 2025-02-07 | D3: 45695 | E3: 2025-06-02 | F3: 45810 | G3: Friday | H3: Monday
A4: Aboyne | B4: Aboyne Academy | C4: 2025-02-06 | D4: 45694 | E4: 2025-02-07 | F4: 45695 | G4: Thursday | H4: Friday
A5: Aboyne | B5: Aboyne School | C5: 2025-02-06 | D5: 45694 | E5: 2025-02-07 | F5: 45695 | G5: Thursday | H5: Friday
A6: Kemnay | B6: Alehousewells School | C6: 2025-02-07 | D6: 45695 | E6: 2025-06-02 | F6: 45810 | G6: Friday | H6: Monday
A7: Alford | B7: Alford Academy | C7: 2025-02-07 | D7: 45695 | E7: 2025-06-02 | F7: 45810 | G7: Friday | H7: Monday
A8: Alford | B8: Alford School | C8: 2025-02-07 | D8: 45695 | E8: 2025-06-02 | F8: 45810 | G8: Friday | H8: Monday
A9: Peterhead | B9: Anna Ritchie School | C9: 2025-02-07 | D9: 45695 | E9: 2025-06-02 | F9: 45810 | G9: Friday | H9: Monday
A10: Stonehaven | B10: Arduthie School | C10: 2025-02-07 | D10: 45695 | E10: 2025-06-02 | F10: 45810 | G10: Friday | H10: Monday
A11: Ellon | B11: Arnage School | C11: 2025-02-07 | D11: 45695 | E11: 2025-06-02 | F11: 45810 | G11: Friday | H11: Monday
A12: Mearns | B12: Auchenblae School | C12: 2025-02-06 | D12: 45694 | E12: 2025-02-07 | F12: 45695 | G12: Thursday | H12: Friday
A13: Mintlaw | B13: Auchnagatt School | C13: 2025-02-07 | D13: 45695 | E13: 2025-06-02 | F13: 45810 | G13: Friday | H13: Monday
A14: Ellon | B14: Auchterellon School | C14: 2025-02-07 | D14: 45695 | E14: 2025-06-02 | F14: 45810 | G14: Friday | H14: Monday
A15: Turriff | B15: Auchterless School | C15: 2025-02-07 | D15: 45695 | E15: 2025-06-02 | F15: 45810 | G15: Friday | H15: Monday
A16: Aboyne | B16: Ballater School | C16: 2025-02-06 | D16: 45694 | E16: 2025-02-07 | F16: 45695 | G16: Thursday | H16: Friday
A17: Ellon | B17: Balmedie School | C17: 2025-02-07 | D17: 45695 | E17: 2025-06-02 | F17: 45810 | G17: Friday | H17: Monday
A18: Banchory | B18: Banchory Academy | C18: 2025-02-07 | D18: 45695 | E18: 2025-06-02 | F18: 45810 | G18: Friday | H18: Monday
A19: Banchory | B19: Banchory School | C19: 2025-02-07 | D19: 45695 | E19: 2025-06-02 | F19: 45810 | G19: Friday | H19: Monday
A20: Portlethen | B20: Banchory-Devenick Sch. | C20: 2025-02-06 | D20: 45694 | E20: 2025-02-07 | F20: 45695 | G20: Thursday | H20: Friday
A21: Banff | B21: Banff School | C21: 2025-02-07 | D21: 45695 | E21: 2025-06-02 | F21: 45810 | G21: Friday | H21: Monday
A22: Banff | B22: Banff Academy | C22: 2025-02-07 | D22: 45695 | E22: 2025-06-02 | F22: 45810 | G22: Friday | H22: Monday
A23: Meldrum | B23: Barthol Chapel School | C23: 2025-02-07 | D23: 45695 | E23: 2025-06-02 | F23: 45810 | G23: Friday | H23: Monday
A24: Stonehaven | B24: Bervie School | C24: 2025-02-07 | D24: 45695 | E24: 2025-06-02 | F24: 45810 | G24: Friday | H24: Monday
A25: Peterhead | B25: Boddam School | C25: 2025-02-07 | D25: 45695 | E25: 2025-06-02 | F25: 45810 | G25: Friday | H25: Monday
A26: Banff | B26: Bracoden School | C26: 2025-02-07 | D26: 45695 | E26: 2025-06-02 | F26: 45810 | G26: Friday | H26: Monday
A27: Aboyne | B27: Braemar School | C27: 2025-02-06 | D27: 45694 | E27: 2025-02-07 | F27: 45695 | G27: Thursday | H27: Friday
A28: Peterhead | B28: Buchanhaven School | C28: 2025-02-07 | D28: 45695 | E28: 2025-06-02 | F28: 45810 | G28: Friday | H28: Monday
A29: Peterhead | B29: Burnhaven School | C29: 2025-02-07 | D29: 45695 | E29: 2025-06-02 | F29: 45810 | G29: Friday | H29: Monday
A30: Huntly | B30: Cairney School | C30: 2025-02-07 | D30: 45695 | E30: 2025-06-02 | F30: 45810 | G30: Friday | H30: Monday
A31: Stonehaven | B31: Carronhill School | C31: 2025-02-07 | D31: 45695 | E31: 2025-06-02 | F31: 45810 | G31: Friday | H31: Monday
A32: Stonehaven | B32: Catterline School | C32: 2025-02-07 | D32: 45695 | E32: 2025-06-02 | F32: 45810 | G32: Friday | H32: Monday
A33: Inverurie | B33: Chapel of Garioch School | C33: 2025-02-07 | D33: 45695 | E33: 2025-06-02 | F33: 45810 | G33: Friday | H33: Monday
A34: Huntly | B34: Clatt School | C34: 2025-02-07 | D34: 45695 | E34: 2025-06-02 | F34: 45810 | G34: Friday | H34: Monday
A35: Peterhead | B35: Clerkhill School | C35: 2025-02-07 | D35: 45695 | E35: 2025-06-02 | F35: 45810 | G35: Friday | H35: Monday
A36: Alford | B36: Cluny School | C36: 2025-02-07 | D36: 45695 | E36: 2025-06-02 | F36: 45810 | G36: Friday | H36: Monday
A37: Alford | B37: Craigievar School | C37: 2025-02-07 | D37: 45695 | E37: 2025-06-02 | F37: 45810 | G37: Friday | H37: Monday
A38: Banchory | B38: Crathes School | C38: 2025-02-07 | D38: 45695 | E38: 2025-06-02 | F38: 45810 | G38: Friday | H38: Monday
A39: Aboyne | B39: Crathie School | C39: 2025-02-06 | D39: 45694 | E39: 2025-02-07 | F39: 45695 | G39: Thursday | H39: Friday
A40: Fraserburgh | B40: Crimond School | C40: 2025-02-07 | D40: 45695 | E40: 2025-06-02 | F40: 45810 | G40: Friday | H40: Monday
A41: Westhill | B41: Crombie School | C41: 2025-02-06 | D41: 45694 | E41: 2025-02-07 | F41: 45695 | G41: Thursday | H41: Friday
A42: Turriff | B42: Crudie School | C42: 2025-02-07 | D42: 45695 | E42: 2025-06-02 | F42: 45810 | G42: Friday | H42: Monday
A43: Meldrum | B43: Cultercullen School | C43: 2025-02-07 | D43: 45695 | E43: 2025-06-02 | F43: 45810 | G43: Friday | H43: Monday
A44: Peterhead | B44: Dales Park School | C44: 2025-02-07 | D44: 45695 | E44: 2025-06-02 | F44: 45810 | G44: Friday | H44: Monday
A45: Meldrum | B45: Daviot School | C45: 2025-02-07 | D45: 45695 | E45: 2025-06-02 | F45: 45810 | G45: Friday | H45: Monday
A46: Huntly | B46: Drumblade School | C46: 2025-02-07 | D46: 45695 | E46: 2025-06-02 | F46: 45810 | G46: Friday | H46: Monday
A47: Banchory | B47: Drumoak School | C47: 2025-02-07 | D47: 45695 | E47: 2025-06-02 | F47: 45810 | G47: Friday | H47: Monday
A48: Alford | B48: Dunecht School | C48: 2025-02-07 | D48: 45695 | E48: 2025-06-02 | F48: 45810 | G48: Friday | H48: Monday
A49: Stonehaven | B49: Dunnottar School | C49: 2025-02-07 | D49: 45695 | E49: 2025-06-02 | F49: 45810 | G49: Friday | H49: Monday
A50: Banchory | B50: Durris School | C50: 2025-02-07 | D50: 45695 | E50: 2025-06-02 | F50: 45810 | G50: Friday | H50: Monday
A51: Turriff | B51: Easterfield School | C51: 2025-02-07 | D51: 45695 | E51: 2025-06-02 | F51: 45810 | G51: Friday | H51: Monday
A52: Alford | B52: Echt School | C52: 2025-02-07 | D52: 45695 | E52: 2025-06-02 | F52: 45810 | G52: Friday | H52: Monday
A53: Ellon | B53: Ellon Academy | C53: 2025-02-07 | D53: 45695 | E53: 2025-06-02 | F53: 45810 | G53: Friday | H53: Monday
A54: Ellon | B54: Ellon School | C54: 2025-02-07 | D54: 45695 | E54: 2025-06-02 | F54: 45810 | G54: Friday | H54: Monday
A55: Westhill | B55: Elrick School | C55: 2025-02-06 | D55: 45694 | E55: 2025-02-07 | F55: 45695 | G55: Thursday | H55: Friday
A56: Mintlaw | B56: Fetterangus School | C56: 2025-02-07 | D56: 45695 | E56: 2025-06-02 | F56: 45810 | G56: Friday | H56: Monday
A57: Mearns | B57: Fettercairn School | C57: 2025-02-06 | D57: 45694 | E57: 2025-02-07 | F57: 45695 | G57: Thursday | H57: Friday
A58: Turriff | B58: Fintry School | C58: 2025-02-07 | D58: 45695 | E58: 2025-06-02 | F58: 45810 | G58: Friday | H58: Monday
A59: Aboyne | B59: Finzean School | C59: 2025-02-06 | D59: 45694 | E59: 2025-02-07 | F59: 45695 | G59: Thursday | H59: Friday
A60: Turriff | B60: Fisherford School | C60: 2025-02-07 | D60: 45695 | E60: 2025-06-02 | F60: 45810 | G60: Friday | H60: Monday
A61: Portlethen | B61: Fishermoss School | C61: 2025-02-06 | D61: 45694 | E61: 2025-02-07 | F61: 45695 | G61: Thursday | H61: Friday
A62: Banff | B62: Fordyce School | C62: 2025-02-07 | D62: 45695 | E62: 2025-06-02 | F62: 45810 | G62: Friday | H62: Monday
A63: Huntly | B63: Forgue School | C63: 2025-02-07 | D63: 45695 | E63: 2025-06-02 | F63: 45810 | G63: Friday | H63: Monday
A64: Ellon | B64: Foveran School | C64: 2025-02-07 | D64: 45695 | E64: 2025-06-02 | F64: 45810 | G64: Friday | H64: Monday
A65: Fraserburgh | B65: Fraserburgh Academy | C65: 2025-02-07 | D65: 45695 | E65: 2025-06-02 | F65: 45810 | G65: Friday | H65: Monday
A66: Fraserburgh | B66: Fraserburgh North School | C66: 2025-02-07 | D66: 45695 | E66: 2025-06-02 | F66: 45810 | G66: Friday | H66: Monday
A67: Fraserburgh | B67: Fraserburgh South Park | C67: 2025-02-07 | D67: 45695 | E67: 2025-06-02 | F67: 45810 | G67: Friday | H67: Monday
A68: Turriff | B68: Fyvie School | C68: 2025-02-07 | D68: 45695 | E68: 2025-06-02 | F68: 45810 | G68: Friday | H68: Monday
A69: Huntly | B69: Gartly School | C69: 2025-02-07 | D69: 45695 | E69: 2025-06-02 | F69: 45810 | G69: Friday | H69: Monday
A70: Huntly | B70: Glass School | C70: 2025-02-07 | D70: 45695 | E70: 2025-06-02 | F70: 45810 | G70: Friday | H70: Monday
A71: Stonehaven | B71: Glenbervie School | C71: 2025-02-07 | D71: 45695 | E71: 2025-06-02 | F71: 45810 | G71: Friday | H71: Monday
A72: Huntly | B72: Gordon Schools (The) | C72: 2025-02-07 | D72: 45695 | E72: 2025-06-02 | F72: 45810 | G72: Friday | H72: Monday
A73: Huntly | B73: GordonSchool | C73: 2025-02-07 | D73: 45695 | E73: 2025-06-02 | F73: 45810 | G73: Friday | H73: Monday
A74: Stonehaven | B74: Gourdon School | C74: 2025-02-07 | D74: 45695 | E74: 2025-06-02 | F74: 45810 | G74: Friday | H74: Monday
A75: Inverurie | B75: Hatton Fintray School | C75: 2025-02-07 | D75: 45695 | E75: 2025-06-02 | F75: 45810 | G75: Friday | H75: Monday
A76: Ellon | B76: Hatton School, Cruden | C76: 2025-02-07 | D76: 45695 | E76: 2025-06-02 | F76: 45810 | G76: Friday | H76: Monday
A77: Banchory | B77: Hill of Banchory School | C77: 2025-02-07 | D77: 45695 | E77: 2025-06-02 | F77: 45810 | G77: Friday | H77: Monday
A78: Portlethen | B78: Hillside School | C78: 2025-02-06 | D78: 45694 | E78: 2025-02-07 | F78: 45695 | G78: Thursday | H78: Friday
A79: Huntly | B79: Insch School | C79: 2025-02-07 | D79: 45695 | E79: 2025-06-02 | F79: 45810 | G79: Friday | H79: Monday
A80: Fraserburgh | B80: Inverallochy School | C80: 2025-02-07 | D80: 45695 | E80: 2025-06-02 | F80: 45810 | G80: Friday | H80: Monday
A81: Inverurie | B81: Inverurie Academy | C81: 2025-02-07 | D81: 45695 | E81: 2025-06-02 | F81: 45810 | G81: Friday | H81: Monday
A82: Stonehaven | B82: Johnshaven School | C82: 2025-02-07 | D82: 45695 | E82: 2025-06-02 | F82: 45810 | G82: Friday | H82: Monday
A83: Alford | B83: Keig School | C83: 2025-02-07 | D83: 45695 | E83: 2025-06-02 | F83: 45810 | G83: Friday | H83: Monday
A84: Inverurie | B84: Keithhall School | C84: 2025-02-07 | D84: 45695 | E84: 2025-06-02 | F84: 45810 | G84: Friday | H84: Monday
A85: Inverurie | B85: Kellands School | C85: 2025-02-07 | D85: 45695 | E85: 2025-06-02 | F85: 45810 | G85: Friday | H85: Monday
A86: Kemnay | B86: Kemnay Academy | C86: 2025-02-07 | D86: 45695 | E86: 2025-06-02 | F86: 45810 | G86: Friday | H86: Monday
A87: Kemnay | B87: Kemnay School | C87: 2025-02-07 | D87: 45695 | E87: 2025-06-02 | F87: 45810 | G87: Friday | H87: Monday
A88: Huntly | B88: Kennethmont School | C88: 2025-02-07 | D88: 45695 | E88: 2025-06-02 | F88: 45810 | G88: Friday | H88: Monday
A89: Aboyne | B89: Kincardine O’Neil School | C89: 2025-02-06 | D89: 45694 | E89: 2025-02-07 | F89: 45695 | G89: Thursday | H89: Friday
A90: Kemnay | B90: Kinellar School | C90: 2025-02-07 | D90: 45695 | E90: 2025-06-02 | F90: 45810 | G90: Friday | H90: Monday
A91: Turriff | B91: King Edward School | C91: 2025-02-07 | D91: 45695 | E91: 2025-06-02 | F91: 45810 | G91: Friday | H91: Monday
A92: Mintlaw | B92: Kininmonth School | C92: 2025-02-07 | D92: 45695 | E92: 2025-06-02 | F92: 45810 | G92: Friday | H92: Monday
A93: Stonehaven | B93: Kinneff School | C93: 2025-02-07 | D93: 45695 | E93: 2025-06-02 | F93: 45810 | G93: Friday | H93: Monday
A94: Kemnay | B94: Kintore School | C94: 2025-02-07 | D94: 45695 | E94: 2025-06-02 | F94: 45810 | G94: Friday | H94: Monday
A95: Stonehaven | B95: Lairhillock School | C95: 2025-02-07 | D95: 45695 | E95: 2025-06-02 | F95: 45810 | G95: Friday | H95: Monday
A96: Huntly | B96: Largue School | C96: 2025-02-07 | D96: 45695 | E96: 2025-06-02 | F96: 45810 | G96: Friday | H96: Monday
A97: Mearns | B97: Laurencekirk School | C97: 2025-02-06 | D97: 45694 | E97: 2025-02-07 | F97: 45695 | G97: Thursday | H97: Friday
A98: Fraserburgh | B98: Lochpots School | C98: 2025-02-07 | D98: 45695 | E98: 2025-06-02 | F98: 45810 | G98: Friday | H98: Monday
A99: Aboyne | B99: Logie Coldstone School | C99: 2025-02-06 | D99: 45694 | E99: 2025-02-07 | F99: 45695 | G99: Thursday | H99: Friday
A100: Meldrum | B100: Logie Durno School | C100: 2025-02-07 | D100: 45695 | E100: 2025-06-02 | F100: 45810 | G100: Friday | H100: Monday
A101: Peterhead | B101: Longhaven School | C101: 2025-02-07 | D101: 45695 | E101: 2025-06-02 | F101: 45810 | G101: Friday | H101: Monday
A102: Mintlaw | B102: Longside School | C102: 2025-02-07 | D102: 45695 | E102: 2025-06-02 | F102: 45810 | G102: Friday | H102: Monday
A103: Aboyne | B103: Lumphanan School | C103: 2025-02-06 | D103: 45694 | E103: 2025-02-07 | F103: 45695 | G103: Thursday | H103: Friday
A104: Alford | B104: Lumsden School | C104: 2025-02-07 | D104: 45695 | E104: 2025-06-02 | F104: 45810 | G104: Friday | H104: Monday
A105: Mearns | B105: Luthermuir School | C105: 2025-02-06 | D105: 45694 | E105: 2025-02-07 | F105: 45695 | G105: Thursday | H105: Friday
A106: Banff | B106: Macduff School | C106: 2025-02-07 | D106: 45695 | E106: 2025-06-02 | F106: 45810 | G106: Friday | H106: Monday
A107: Stonehaven | B107: Mackie Academy | C107: 2025-02-07 | D107: 45695 | E107: 2025-06-02 | F107: 45810 | G107: Friday | H107: Monday
A108: Mearns | B108: Marykirk School | C108: 2025-02-06 | D108: 45694 | E108: 2025-02-07 | F108: 45695 | G108: Thursday | H108: Friday
A109: Mintlaw | B109: Maud School | C109: 2025-02-07 | D109: 45695 | E109: 2025-06-02 | F109: 45810 | G109: Friday | H109: Monday
A110: Mearns | B110: Mearns Academy | C110: 2025-02-06 | D110: 45694 | E110: 2025-02-07 | F110: 45695 | G110: Thursday | H110: Friday
A111: Peterhead | B111: Meethill School | C111: 2025-02-07 | D111: 45695 | E111: 2025-06-02 | F111: 45810 | G111: Friday | H111: Monday
A112: Ellon | B112: Meiklemill School | C112: 2025-02-07 | D112: 45695 | E112: 2025-06-02 | F112: 45810 | G112: Friday | H112: Monday
A113: Meldrum | B113: Meldrum Academy | C113: 2025-02-07 | D113: 45695 | E113: 2025-06-02 | F113: 45810 | G113: Friday | H113: Monday
A114: Meldrum | B114: Meldrum School | C114: 2025-02-07 | D114: 45695 | E114: 2025-06-02 | F114: 45810 | G114: Friday | H114: Monday
A115: Meldrum | B115: Methlick School | C115: 2025-02-07 | D115: 45695 | E115: 2025-06-02 | F115: 45810 | G115: Friday | H115: Monday
A116: Alford | B116: Midmar School | C116: 2025-02-07 | D116: 45695 | E116: 2025-06-02 | F116: 45810 | G116: Friday | H116: Monday
A117: Kemnay | B117: Midmill School | C117: 2025-02-07 | D117: 45695 | E117: 2025-06-02 | F117: 45810 | G117: Friday | H117: Monday
A118: Stonehaven | B118: Mill O’Forest School | C118: 2025-02-07 | D118: 45695 | E118: 2025-06-02 | F118: 45810 | G118: Friday | H118: Monday
A119: Mintlaw | B119: Mintlaw Academy | C119: 2025-02-07 | D119: 45695 | E119: 2025-06-02 | F119: 45810 | G119: Friday | H119: Monday
A120: Mintlaw | B120: Mintlaw School | C120: 2025-02-07 | D120: 45695 | E120: 2025-06-02 | F120: 45810 | G120: Friday | H120: Monday
A121: Turriff | B121: Monquhitter School | C121: 2025-02-07 | D121: 45695 | E121: 2025-06-02 | F121: 45810 | G121: Friday | H121: Monday
A122: Alford | B122: Monymusk School | C122: 2025-02-07 | D122: 45695 | E122: 2025-06-02 | F122: 45810 | G122: Friday | H122: Monday
A123: Mintlaw | B123: New Deer School | C123: 2025-02-07 | D123: 45695 | E123: 2025-06-02 | F123: 45810 | G123: Friday | H123: Monday
A124: Inverurie | B124: New Machar School | C124: 2025-02-07 | D124: 45695 | E124: 2025-06-02 | F124: 45810 | G124: Friday | H124: Monday
A125: Mintlaw | B125: New Pitsligo & St John’s School | C125: 2025-02-07 | D125: 45695 | E125: 2025-06-02 | F125: 45810 | G125: Friday | H125: Monday
A126: Ellon | B126: Newburgh Mathers School | C126: 2025-02-07 | D126: 45695 | E126: 2025-06-02 | F126: 45810 | G126: Friday | H126: Monday
A127: Portlethen | B127: Newtonhill School | C127: 2025-02-06 | D127: 45694 | E127: 2025-02-07 | F127: 45695 | G127: Thursday | H127: Friday
A128: Meldrum | B128: Old Rayne School | C128: 2025-02-07 | D128: 45695 | E128: 2025-06-02 | F128: 45810 | G128: Friday | H128: Monday
A129: Banff | B129: Ordiquhill School | C129: 2025-02-07 | D129: 45695 | E129: 2025-06-02 | F129: 45810 | G129: Friday | H129: Monday
A130: Inverurie | B130: Oyne School | C130: 2025-02-07 | D130: 45695 | E130: 2025-06-02 | F130: 45810 | G130: Friday | H130: Monday
A131: Peterhead | B131: Peterhead Academy | C131: 2025-02-07 | D131: 45695 | E131: 2025-06-02 | F131: 45810 | G131: Friday | H131: Monday
A132: Peterhead | B132: Peterhead Central School | C132: 2025-02-07 | D132: 45695 | E132: 2025-06-02 | F132: 45810 | G132: Friday | H132: Monday
A133: Mintlaw | B133: Pitfour School | C133: 2025-02-07 | D133: 45695 | E133: 2025-06-02 | F133: 45810 | G133: Friday | H133: Monday
A134: Meldrum | B134: Pitmedden School | C134: 2025-02-07 | D134: 45695 | E134: 2025-06-02 | F134: 45810 | G134: Friday | H134: Monday
A135: Inverurie | B135: Port Elphinstone School | C135: 2025-02-07 | D135: 45695 | E135: 2025-06-02 | F135: 45810 | G135: Friday | H135: Monday
A136: Peterhead | B136: Port Erroll School | C136: 2025-02-07 | D136: 45695 | E136: 2025-06-02 | F136: 45810 | G136: Friday | H136: Monday
A137: Portlethen | B137: Portlethen Academy | C137: 2025-02-06 | D137: 45694 | E137: 2025-02-07 | F137: 45695 | G137: Thursday | H137: Friday
A138: Portlethen | B138: Portlethen School | C138: 2025-02-06 | D138: 45694 | E138: 2025-02-07 | F138: 45695 | G138: Thursday | H138: Friday
A139: Banff | B139: Portsoy School | C139: 2025-02-07 | D139: 45695 | E139: 2025-06-02 | F139: 45810 | G139: Friday | H139: Monday
A140: Huntly | B140: Premnay School | C140: 2025-02-07 | D140: 45695 | E140: 2025-06-02 | F140: 45810 | G140: Friday | H140: Monday
A141: Fraserburgh | B141: Rathen School | C141: 2025-02-07 | D141: 45695 | E141: 2025-06-02 | F141: 45810 | G141: Friday | H141: Monday
A142: Meldrum | B142: Rayne North School | C142: 2025-02-07 | D142: 45695 | E142: 2025-06-02 | F142: 45810 | G142: Friday | H142: Monday
A143: Mearns | B143: Redmyre School | C143: 2025-02-06 | D143: 45694 | E143: 2025-02-07 | F143: 45695 | G143: Thursday | H143: Friday
A144: Huntly | B144: Rhynie School | C144: 2025-02-07 | D144: 45695 | E144: 2025-06-02 | F144: 45810 | G144: Friday | H144: Monday
A145: Fraserburgh | B145: Rosehearty School | C145: 2025-02-07 | D145: 45695 | E145: 2025-06-02 | F145: 45810 | G145: Friday | H145: Monday
A146: Meldrum | B146: Rothienorman School | C146: 2025-02-07 | D146: 45695 | E146: 2025-06-02 | F146: 45810 | G146: Friday | H146: Monday
A147: Fraserburgh | B147: Sandhaven School | C147: 2025-02-07 | D147: 45695 | E147: 2025-06-02 | F147: 45810 | G147: Friday | H147: Monday
A148: Westhill | B148: Skene School | C148: 2025-02-06 | D148: 45694 | E148: 2025-02-07 | F148: 45695 | G148: Thursday | H148: Friday
A149: Ellon | B149: Slains School | C149: 2025-02-07 | D149: 45695 | E149: 2025-06-02 | F149: 45810 | G149: Friday | H149: Monday
A150: Fraserburgh | B150: St Andrew’s School | C150: 2025-02-07 | D150: 45695 | E150: 2025-06-02 | F150: 45810 | G150: Friday | H150: Monday
A151: Inverurie | B151: St Andrew’s School | C151: 2025-02-07 | D151: 45695 | E151: 2025-06-02 | F151: 45810 | G151: Friday | H151: Monday
A152: Fraserburgh | B152: St Combs School | C152: 2025-02-07 | D152: 45695 | E152: 2025-06-02 | F152: 45810 | G152: Friday | H152: Monday
A153: Mearns | B153: St Cyrus School | C153: 2025-02-06 | D153: 45694 | E153: 2025-02-07 | F153: 45695 | G153: Thursday | H153: Friday
A154: Peterhead | B154: St Fergus School | C154: 2025-02-07 | D154: 45695 | E154: 2025-06-02 | F154: 45810 | G154: Friday | H154: Monday
A155: Banchory | B155: Strachan School | C155: 2025-02-07 | D155: 45695 | E155: 2025-06-02 | F155: 45810 | G155: Friday | H155: Monday
A156: Inverurie | B156: Strathburn School | C156: 2025-02-07 | D156: 45695 | E156: 2025-06-02 | F156: 45810 | G156: Friday | H156: Monday
A157: Alford | B157: Strathdon School | C157: 2025-02-07 | D157: 45695 | E157: 2025-06-02 | F157: 45810 | G157: Friday | H157: Monday
A158: Mintlaw | B158: Strichen School | C158: 2025-02-07 | D158: 45695 | E158: 2025-06-02 | F158: 45810 | G158: Friday | H158: Monday
A159: Mintlaw | B159: Stuartfield School | C159: 2025-02-07 | D159: 45695 | E159: 2025-06-02 | F159: 45810 | G159: Friday | H159: Monday
A160: Aboyne | B160: Tarland School | C160: 2025-02-06 | D160: 45694 | E160: 2025-02-07 | F160: 45695 | G160: Thursday | H160: Friday
A161: Meldrum | B161: Tarves School | C161: 2025-02-07 | D161: 45695 | E161: 2025-06-02 | F161: 45810 | G161: Friday | H161: Monday
A162: Ellon | B162: Tipperty School | C162: 2025-02-07 | D162: 45695 | E162: 2025-06-02 | F162: 45810 | G162: Friday | H162: Monday
A163: Aboyne | B163: Torphins School | C163: 2025-02-06 | D163: 45694 | E163: 2025-02-07 | F163: 45695 | G163: Thursday | H163: Friday
A164: Alford | B164: Tough School | C164: 2025-02-07 | D164: 45695 | E164: 2025-06-02 | F164: 45810 | G164: Friday | H164: Monday
A165: Alford | B165: Towie School | C165: 2025-02-07 | D165: 45695 | E165: 2025-06-02 | F165: 45810 | G165: Friday | H165: Monday
A166: Alford | B166: Tullynessle School | C166: 2025-02-07 | D166: 45695 | E166: 2025-06-02 | F166: 45810 | G166: Friday | H166: Monday
A167: Turriff | B167: Turriff Academy | C167: 2025-02-07 | D167: 45695 | E167: 2025-06-02 | F167: 45810 | G167: Friday | H167: Monday
A168: Turriff | B168: Turriff School | C168: 2025-02-07 | D168: 45695 | E168: 2025-06-02 | F168: 45810 | G168: Friday | H168: Monday
A169: Fraserburgh | B169: Tyrie School | C169: 2025-02-07 | D169: 45695 | E169: 2025-06-02 | F169: 45810 | G169: Friday | H169: Monday
A170: Meldrum | B170: Udny Green School | C170: 2025-02-07 | D170: 45695 | E170: 2025-06-02 | F170: 45810 | G170: Friday | H170: Monday
A171: Inverurie | B171: Uryside School | C171: 2025-02-07 | D171: 45695 | E171: 2025-06-02 | F171: 45810 | G171: Friday | H171: Monday
A172: Fraserburgh | B172: Westfield School | C172: 2025-02-07 | D172: 45695 | E172: 2025-06-02 | F172: 45810 | G172: Friday | H172: Monday
A173: Westhill | B173: Westhill School | C173: 2025-02-06 | D173: 45694 | E173: 2025-02-07 | F173: 45695 | G173: Thursday | H173: Friday
A174: Westhill | B174: Westhill Academy | C174: 2025-02-06 | D174: 45694 | E174: 2025-02-07 | F174: 45695 | G174: Thursday | H174: Friday
A175: Banff | B175: Whitehills School | C175: 2025-02-07 | D175: 45695 | E175: 2025-06-02 | F175: 45810 | G175: Friday | H175: Monday

Sheet Occ Days List (hidden)
A1: NO SCHOOL | B1: Date | C1: Numeric Date
A2: Aberchirder School | B2: 2025-02-07 | C2: 45695
A3: Aberchirder School | B3: 2025-06-02 | C3: 45810
A4: Aboyne Academy | B4: 2025-02-06 | C4: 45694
A5: Aboyne Academy | B5: 2025-02-07 | C5: 45695
A6: Aboyne School | B6: 2025-02-06 | C6: 45694
A7: Aboyne School | B7: 2025-02-07 | C7: 45695
A8: Alehousewells School | B8: 2025-02-07 | C8: 45695
A9: Alehousewells School | B9: 2025-06-02 | C9: 45810
A10: Alford Academy | B10: 2025-02-07 | C10: 45695
A11: Alford Academy | B11: 2025-06-02 | C11: 45810
A12: Alford School | B12: 2025-02-07 | C12: 45695
A13: Alford School | B13: 2025-06-02 | C13: 45810
A14: Anna Ritchie School | B14: 2025-02-07 | C14: 45695
A15: Anna Ritchie School | B15: 2025-06-02 | C15: 45810
A16: Arduthie School | B16: 2025-02-07 | C16: 45695
A17: Arduthie School | B17: 2025-06-02 | C17: 45810
A18: Arnage School | B18: 2025-02-07 | C18: 45695
A19: Arnage School | B19: 2025-06-02 | C19: 45810
A20: Auchenblae School | B20: 2025-02-06 | C20: 45694
A21: Auchenblae School | B21: 2025-02-07 | C21: 45695
A22: Auchnagatt School | B22: 2025-02-07 | C22: 45695
A23: Auchnagatt School | B23: 2025-06-02 | C23: 45810
A24: Auchterellon School | B24: 2025-02-07 | C24: 45695
A25: Auchterellon School | B25: 2025-06-02 | C25: 45810
A26: Auchterless School | B26: 2025-02-07 | C26: 45695
A27: Auchterless School | B27: 2025-06-02 | C27: 45810
A28: Ballater School | B28: 2025-02-06 | C28: 45694
A29: Ballater School | B29: 2025-02-07 | C29: 45695
A30: Balmedie School | B30: 2025-02-07 | C30: 45695
A31: Balmedie School | B31: 2025-06-02 | C31: 45810
A32: Banchory Academy | B32: 2025-02-07 | C32: 45695
A33: Banchory Academy | B33: 2025-06-02 | C33: 45810
A34: Banchory School | B34: 2025-02-07 | C34: 45695
A35: Banchory School | B35: 2025-06-02 | C35: 45810
A36: Banchory-Devenick Sch. | B36: 2025-02-06 | C36: 45694
A37: Banchory-Devenick Sch. | B37: 2025-02-07 | C37: 45695
A38: Banff School | B38: 2025-02-07 | C38: 45695
A39: Banff School | B39: 2025-06-02 | C39: 45810
A40: Banff Academy | B40: 2025-02-07 | C40: 45695
A41: Banff Academy | B41: 2025-06-02 | C41: 45810
A42: Barthol Chapel School | B42: 2025-02-07 | C42: 45695
A43: Barthol Chapel School | B43: 2025-06-02 | C43: 45810
A44: Bervie School | B44: 2025-02-07 | C44: 45695
A45: Bervie School | B45: 2025-06-02 | C45: 45810
A46: Boddam School | B46: 2025-02-07 | C46: 45695
A47: Boddam School | B47: 2025-06-02 | C47: 45810
A48: Bracoden School | B48: 2025-02-07 | C48: 45695
A49: Bracoden School | B49: 2025-06-02 | C49: 45810
A50: Braemar School | B50: 2025-02-06 | C50: 45694
A51: Braemar School | B51: 2025-02-07 | C51: 45695
A52: Buchanhaven School | B52: 2025-02-07 | C52: 45695
A53: Buchanhaven School | B53: 2025-06-02 | C53: 45810
A54: Burnhaven School | B54: 2025-02-07 | C54: 45695
A55: Burnhaven School | B55: 2025-06-02 | C55: 45810
A56: Cairney School | B56: 2025-02-07 | C56: 45695
A57: Cairney School | B57: 2025-06-02 | C57: 45810
A58: Carronhill School | B58: 2025-02-07 | C58: 45695
A59: Carronhill School | B59: 2025-06-02 | C59: 45810
A60: Catterline School | B60: 2025-02-07 | C60: 45695
A61: Catterline School | B61: 2025-06-02 | C61: 45810
A62: Chapel of Garioch School | B62: 2025-02-07 | C62: 45695
A63: Chapel of Garioch School | B63: 2025-06-02 | C63: 45810
A64: Clatt School | B64: 2025-02-07 | C64: 45695
A65: Clatt School | B65: 2025-06-02 | C65: 45810
A66: Clerkhill School | B66: 2025-02-07 | C66: 45695
A67: Clerkhill School | B67: 2025-06-02 | C67: 45810
A68: Cluny School | B68: 2025-02-07 | C68: 45695
A69: Cluny School | B69: 2025-06-02 | C69: 45810
A70: Craigievar School | B70: 2025-02-07 | C70: 45695
A71: Craigievar School | B71: 2025-06-02 | C71: 45810
A72: Crathes School | B72: 2025-02-07 | C72: 45695
A73: Crathes School | B73: 2025-06-02 | C73: 45810
A74: Crathie School | B74: 2025-02-06 | C74: 45694
A75: Crathie School | B75: 2025-02-07 | C75: 45695
A76: Crimond School | B76: 2025-02-07 | C76: 45695
A77: Crimond School | B77: 2025-06-02 | C77: 45810
A78: Crombie School | B78: 2025-02-06 | C78: 45694
A79: Crombie School | B79: 2025-02-07 | C79: 45695
A80: Crudie School | B80: 2025-02-07 | C80: 45695
A81: Crudie School | B81: 2025-06-02 | C81: 45810
A82: Cultercullen School | B82: 2025-02-07 | C82: 45695
A83: Cultercullen School | B83: 2025-06-02 | C83: 45810
A84: Dales Park School | B84: 2025-02-07 | C84: 45695
A85: Dales Park School | B85: 2025-06-02 | C85: 45810
A86: Daviot School | B86: 2025-02-07 | C86: 45695
A87: Daviot School | B87: 2025-06-02 | C87: 45810
A88: Drumblade School | B88: 2025-02-07 | C88: 45695
A89: Drumblade School | B89: 2025-06-02 | C89: 45810
A90: Drumoak School | B90: 2025-02-07 | C90: 45695
A91: Drumoak School | B91: 2025-06-02 | C91: 45810
A92: Dunecht School | B92: 2025-02-07 | C92: 45695
A93: Dunecht School | B93: 2025-06-02 | C93: 45810
A94: Dunnottar School | B94: 2025-02-07 | C94: 45695
A95: Dunnottar School | B95: 2025-06-02 | C95: 45810
A96: Durris School | B96: 2025-02-07 | C96: 45695
A97: Durris School | B97: 2025-06-02 | C97: 45810
A98: Easterfield School | B98: 2025-02-07 | C98: 45695
A99: Easterfield School | B99: 2025-06-02 | C99: 45810
A100: Echt School | B100: 2025-02-07 | C100: 45695
A101: Echt School | B101: 2025-06-02 | C101: 45810
A102: Ellon Academy | B102: 2025-02-07 | C102: 45695
A103: Ellon Academy | B103: 2025-06-02 | C103: 45810
A104: Ellon School | B104: 2025-02-07 | C104: 45695
A105: Ellon School | B105: 2025-06-02 | C105: 45810
A106: Elrick School | B106: 2025-02-06 | C106: 45694
A107: Elrick School | B107: 2025-02-07 | C107: 45695
A108: Fetterangus School | B108: 2025-02-07 | C108: 45695
A109: Fetterangus School | B109: 2025-06-02 | C109: 45810
A110: Fettercairn School | B110: 2025-02-06 | C110: 45694
A111: Fettercairn School | B111: 2025-02-07 | C111: 45695
A112: Fintry School | B112: 2025-02-07 | C112: 45695
A113: Fintry School | B113: 2025-06-02 | C113: 45810
A114: Finzean School | B114: 2025-02-06 | C114: 45694
A115: Finzean School | B115: 2025-02-07 | C115: 45695
A116: Fisherford School | B116: 2025-02-07 | C116: 45695
A117: Fisherford School | B117: 2025-06-02 | C117: 45810
A118: Fishermoss School | B118: 2025-02-06 | C118: 45694
A119: Fishermoss School | B119: 2025-02-07 | C119: 45695
A120: Fordyce School | B120: 2025-02-07 | C120: 45695
A121: Fordyce School | B121: 2025-06-02 | C121: 45810
A122: Forgue School | B122: 2025-02-07 | C122: 45695
A123: Forgue School | B123: 2025-06-02 | C123: 45810
A124: Foveran School | B124: 2025-02-07 | C124: 45695
A125: Foveran School | B125: 2025-06-02 | C125: 45810
A126: Fraserburgh Academy | B126: 2025-02-07 | C126: 45695
A127: Fraserburgh Academy | B127: 2025-06-02 | C127: 45810
A128: Fraserburgh North School | B128: 2025-02-07 | C128: 45695
A129: Fraserburgh North School | B129: 2025-06-02 | C129: 45810
A130: Fraserburgh South Park | B130: 2025-02-07 | C130: 45695
A131: Fraserburgh South Park | B131: 2025-06-02 | C131: 45810
A132: Fyvie School | B132: 2025-02-07 | C132: 45695
A133: Fyvie School | B133: 2025-06-02 | C133: 45810
A134: Gartly School | B134: 2025-02-07 | C134: 45695
A135: Gartly School | B135: 2025-06-02 | C135: 45810
A136: Glass School | B136: 2025-02-07 | C136: 45695
A137: Glass School | B137: 2025-06-02 | C137: 45810
A138: Glenbervie School | B138: 2025-02-07 | C138: 45695
A139: Glenbervie School | B139: 2025-06-02 | C139: 45810
A140: Gordon Schools (The) | B140: 2025-02-07 | C140: 45695
A141: Gordon Schools (The) | B141: 2025-06-02 | C141: 45810
A142: GordonSchool | B142: 2025-02-07 | C142: 45695
A143: GordonSchool | B143: 2025-06-02 | C143: 45810
A144: Gourdon School | B144: 2025-02-07 | C144: 45695
A145: Gourdon School | B145: 2025-06-02 | C145: 45810
A146: Hatton Fintray School | B146: 2025-02-07 | C146: 45695
A147: Hatton Fintray School | B147: 2025-06-02 | C147: 45810
A148: Hatton School, Cruden | B148: 2025-02-07 | C148: 45695
A149: Hatton School, Cruden | B149: 2025-06-02 | C149: 45810
A150: Hill of Banchory School | B150: 2025-02-07 | C150: 45695
A151: Hill of Banchory School | B151: 2025-06-02 | C151: 45810
A152: Hillside School | B152: 2025-02-06 | C152: 45694
A153: Hillside School | B153: 2025-02-07 | C153: 45695
A154: Insch School | B154: 2025-02-07 | C154: 45695
A155: Insch School | B155: 2025-06-02 | C155: 45810
A156: Inverallochy School | B156: 2025-02-07 | C156: 45695
A157: Inverallochy School | B157: 2025-06-02 | C157: 45810
A158: Inverurie Academy | B158: 2025-02-07 | C158: 45695
A159: Inverurie Academy | B159: 2025-06-02 | C159: 45810
A160: Johnshaven School | B160: 2025-02-07 | C160: 45695
A161: Johnshaven School | B161: 2025-06-02 | C161: 45810
A162: Keig School | B162: 2025-02-07 | C162: 45695
A163: Keig School | B163: 2025-06-02 | C163: 45810
A164: Keithhall School | B164: 2025-02-07 | C164: 45695
A165: Keithhall School | B165: 2025-06-02 | C165: 45810
A166: Kellands School | B166: 2025-02-07 | C166: 45695
A167: Kellands School | B167: 2025-06-02 | C167: 45810
A168: Kemnay Academy | B168: 2025-02-07 | C168: 45695
A169: Kemnay Academy | B169: 2025-06-02 | C169: 45810
A170: Kemnay School | B170: 2025-02-07 | C170: 45695
A171: Kemnay School | B171: 2025-06-02 | C171: 45810
A172: Kennethmont School | B172: 2025-02-07 | C172: 45695
A173: Kennethmont School | B173: 2025-06-02 | C173: 45810
A174: Kincardine O’Neil School | B174: 2025-02-06 | C174: 45694
A175: Kincardine O’Neil School | B175: 2025-02-07 | C175: 45695
A176: Kinellar School | B176: 2025-02-07 | C176: 45695
A177: Kinellar School | B177: 2025-06-02 | C177: 45810
A178: King Edward School | B178: 2025-02-07 | C178: 45695
A179: King Edward School | B179: 2025-06-02 | C179: 45810
A180: Kininmonth School | B180: 2025-02-07 | C180: 45695
A181: Kininmonth School | B181: 2025-06-02 | C181: 45810
A182: Kinneff School | B182: 2025-02-07 | C182: 45695
A183: Kinneff School | B183: 2025-06-02 | C183: 45810
A184: Kintore School | B184: 2025-02-07 | C184: 45695
A185: Kintore School | B185: 2025-06-02 | C185: 45810
A186: Lairhillock School | B186: 2025-02-07 | C186: 45695
A187: Lairhillock School | B187: 2025-06-02 | C187: 45810
A188: Largue School | B188: 2025-02-07 | C188: 45695
A189: Largue School | B189: 2025-06-02 | C189: 45810
A190: Laurencekirk School | B190: 2025-02-06 | C190: 45694
A191: Laurencekirk School | B191: 2025-02-07 | C191: 45695
A192: Lochpots School | B192: 2025-02-07 | C192: 45695
A193: Lochpots School | B193: 2025-06-02 | C193: 45810
A194: Logie Coldstone School | B194: 2025-02-06 | C194: 45694
A195: Logie Coldstone School | B195: 2025-02-07 | C195: 45695
A196: Logie Durno School | B196: 2025-02-07 | C196: 45695
A197: Logie Durno School | B197: 2025-06-02 | C197: 45810
A198: Longhaven School | B198: 2025-02-07 | C198: 45695
A199: Longhaven School | B199: 2025-06-02 | C199: 45810
A200: Longside School | B200: 2025-02-07 | C200: 45695
... 147 more rows
